Department family,Entity,Date,Expense type,Expense area,Supplier,Transaction number,Amount,VAT registration number
Department for Business Energy and Industrial Strategy,Intellectual Property Office,14/05/2018,Travel & Subsistence,Patent Directorate,Personal expenses,UK000003698,532.10,Not Applicable
Department for Business Energy and Industrial Strategy,Intellectual Property Office,02/05/2018,Pay Costs,People Places & Serv Directorate,Acorn Recruitment Ltd,873622,694.94,Not Applicable
Department for Business Energy and Industrial Strategy,Intellectual Property Office,02/05/2018,Pay Costs,Patent Directorate,Acorn Recruitment Ltd,873623,510.12,Not Applicable
Department for Business Energy and Industrial Strategy,Intellectual Property Office,02/05/2018,Pay Costs,Patent Directorate,Acorn Recruitment Ltd,873624,518.21,Not Applicable
Department for Business Energy and Industrial Strategy,Intellectual Property Office,11/05/2018,Pay Costs,People Places & Serv Directorate,Acorn Recruitment Ltd,874285,699.52,Not Applicable
Department for Business Energy and Industrial Strategy,Intellectual Property Office,11/05/2018,Pay Costs,Patent Directorate,Acorn Recruitment Ltd,874286,667.51,Not Applicable
Department for Business Energy and Industrial Strategy,Intellectual Property Office,11/05/2018,Pay Costs,Patent Directorate,Acorn Recruitment Ltd,874287,517.69,Not Applicable
Department for Business Energy and Industrial Strategy,Intellectual Property Office,16/05/2018,Pay Costs,People Places & Serv Directorate,Acorn Recruitment Ltd,874979,694.94,Not Applicable
Department for Business Energy and Industrial Strategy,Intellectual Property Office,16/05/2018,Pay Costs,Patent Directorate,Acorn Recruitment Ltd,874980,667.51,Not Applicable
Department for Business Energy and Industrial Strategy,Intellectual Property Office,16/05/2018,Pay Costs,Patent Directorate,Acorn Recruitment Ltd,874981,518.74,Not Applicable
Department for Business Energy and Industrial Strategy,Intellectual Property Office,23/05/2018,Pay Costs,People Places & Serv Directorate,Acorn Recruitment Ltd,875656,544.07,Not Applicable
Department for Business Energy and Industrial Strategy,Intellectual Property Office,23/05/2018,Pay Costs,Patent Directorate,Acorn Recruitment Ltd,875657,539.50,Not Applicable
Department for Business Energy and Industrial Strategy,Intellectual Property Office,30/05/2018,Pay Costs,People Places & Serv Directorate,Acorn Recruitment Ltd,876319,703.00,Not Applicable
Department for Business Energy and Industrial Strategy,Intellectual Property Office,30/05/2018,Pay Costs,Patent Directorate,Acorn Recruitment Ltd,876320,512.06,Not Applicable
Department for Business Energy and Industrial Strategy,Intellectual Property Office,30/05/2018,Pay Costs,Patent Directorate,Acorn Recruitment Ltd,876321,647.56,Not Applicable
Department for Business Energy and Industrial Strategy,Intellectual Property Office,03/05/2018,Office Supplies,Finance Directorate,Banner Group Limited,1842748,1017.26,Not Applicable
Department for Business Energy and Industrial Strategy,Intellectual Property Office,17/05/2018,Telecoms,IT Directorate,British  Telecom,GP00002104M0571&,3056.23,Not Applicable
Department for Business Energy and Industrial Strategy,Intellectual Property Office,21/05/2018,Telecoms,IT Directorate,British  Telecom,VP02239170M19701,5891.29,Not Applicable
Department for Business Energy and Industrial Strategy,Intellectual Property Office,03/05/2018,Office Supplies,Patent Directorate,British Library,139799720,3131.52,Not Applicable
Department for Business Energy and Industrial Strategy,Intellectual Property Office,04/05/2018,Pay Costs,Patent Directorate,Brook Street (UK) Ltd,30119712,531.00,Not Applicable
Department for Business Energy and Industrial Strategy,Intellectual Property Office,04/05/2018,Pay Costs,Patent Directorate,Brook Street (UK) Ltd,30119713,508.74,Not Applicable
Department for Business Energy and Industrial Strategy,Intellectual Property Office,04/05/2018,Pay Costs,Patent Directorate,Brook Street (UK) Ltd,30119714,617.16,Not Applicable
Department for Business Energy and Industrial Strategy,Intellectual Property Office,04/05/2018,Pay Costs,Patent Directorate,Brook Street (UK) Ltd,30119715,531.00,Not Applicable
Department for Business Energy and Industrial Strategy,Intellectual Property Office,04/05/2018,Pay Costs,Patent Directorate,Brook Street (UK) Ltd,30119716,561.14,Not Applicable
Department for Business Energy and Industrial Strategy,Intellectual Property Office,04/05/2018,Pay Costs,Patent Directorate,Brook Street (UK) Ltd,30119719,553.67,Not Applicable
Department for Business Energy and Industrial Strategy,Intellectual Property Office,04/05/2018,Pay Costs,Patent Directorate,Brook Street (UK) Ltd,30119721,617.16,Not Applicable
Department for Business Energy and Industrial Strategy,Intellectual Property Office,04/05/2018,Pay Costs,Patent Directorate,Brook Street (UK) Ltd,30119722,553.67,Not Applicable
Department for Business Energy and Industrial Strategy,Intellectual Property Office,04/05/2018,Pay Costs,Trade Mark Directorate,Brook Street (UK) Ltd,30119724,608.82,Not Applicable
Department for Business Energy and Industrial Strategy,Intellectual Property Office,16/05/2018,Pay Costs,IT Directorate,Brook Street (UK) Ltd,30119729,803.21,Not Applicable
Department for Business Energy and Industrial Strategy,Intellectual Property Office,04/05/2018,Pay Costs,Patent Directorate,Brook Street (UK) Ltd,30119730,553.67,Not Applicable
Department for Business Energy and Industrial Strategy,Intellectual Property Office,16/05/2018,Pay Costs,Patent Directorate,Brook Street (UK) Ltd,30119731,598.31,Not Applicable
Department for Business Energy and Industrial Strategy,Intellectual Property Office,04/05/2018,Pay Costs,Patent Directorate,Brook Street (UK) Ltd,30119732,532.80,Not Applicable
Department for Business Energy and Industrial Strategy,Intellectual Property Office,16/05/2018,Pay Costs,People Places & Serv Directorate,Brook Street (UK) Ltd,30119733,594.20,Not Applicable
Department for Business Energy and Industrial Strategy,Intellectual Property Office,09/05/2018,Pay Costs,Patent Directorate,Brook Street (UK) Ltd,30119735,606.50,Not Applicable
Department for Business Energy and Industrial Strategy,Intellectual Property Office,09/05/2018,Pay Costs,Trade Mark Directorate,Brook Street (UK) Ltd,30119736,649.97,Not Applicable
Department for Business Energy and Industrial Strategy,Intellectual Property Office,04/05/2018,Pay Costs,Patent Directorate,Brook Street (UK) Ltd,30125811,-553.67,Not Applicable
Department for Business Energy and Industrial Strategy,Intellectual Property Office,04/05/2018,Pay Costs,Patent Directorate,Brook Street (UK) Ltd,30126443,606.50,Not Applicable
Department for Business Energy and Industrial Strategy,Intellectual Property Office,15/05/2018,Pay Costs,Patent Directorate,Brook Street (UK) Ltd,30132256,650.52,Not Applicable
Department for Business Energy and Industrial Strategy,Intellectual Property Office,15/05/2018,Pay Costs,Patent Directorate,Brook Street (UK) Ltd,30132257,561.14,Not Applicable
Department for Business Energy and Industrial Strategy,Intellectual Property Office,15/05/2018,Pay Costs,Patent Directorate,Brook Street (UK) Ltd,30132258,553.67,Not Applicable
Department for Business Energy and Industrial Strategy,Intellectual Property Office,15/05/2018,Pay Costs,Patent Directorate,Brook Street (UK) Ltd,30132259,501.29,Not Applicable
Department for Business Energy and Industrial Strategy,Intellectual Property Office,15/05/2018,Pay Costs,Trade Mark Directorate,Brook Street (UK) Ltd,30132265,617.16,Not Applicable
Department for Business Energy and Industrial Strategy,Intellectual Property Office,15/05/2018,Pay Costs,Patent Directorate,Brook Street (UK) Ltd,30132266,557.40,Not Applicable
Department for Business Energy and Industrial Strategy,Intellectual Property Office,15/05/2018,Pay Costs,Patent Directorate,Brook Street (UK) Ltd,30132267,614.70,Not Applicable
Department for Business Energy and Industrial Strategy,Intellectual Property Office,15/05/2018,Pay Costs,IT Directorate,Brook Street (UK) Ltd,30132269,550.44,Not Applicable
Department for Business Energy and Industrial Strategy,Intellectual Property Office,15/05/2018,Pay Costs,IT Directorate,Brook Street (UK) Ltd,30132270,614.70,Not Applicable
Department for Business Energy and Industrial Strategy,Intellectual Property Office,15/05/2018,Pay Costs,Patent Directorate,Brook Street (UK) Ltd,30132273,532.80,Not Applicable
Department for Business Energy and Industrial Strategy,Intellectual Property Office,17/05/2018,Pay Costs,People Places & Serv Directorate,Brook Street (UK) Ltd,30132274,606.50,Not Applicable
Department for Business Energy and Industrial Strategy,Intellectual Property Office,16/05/2018,Pay Costs,Patent Directorate,Brook Street (UK) Ltd,30132275,606.72,Not Applicable
Department for Business Energy and Industrial Strategy,Intellectual Property Office,18/05/2018,Pay Costs,IT Directorate,Brook Street (UK) Ltd,30144649,500.40,Not Applicable
Department for Business Energy and Industrial Strategy,Intellectual Property Office,18/05/2018,Pay Costs,IT Directorate,Brook Street (UK) Ltd,30144650,614.70,Not Applicable
Department for Business Energy and Industrial Strategy,Intellectual Property Office,29/05/2018,Pay Costs,Patent Directorate,Brook Street (UK) Ltd,30157061,587.28,Not Applicable
Department for Business Energy and Industrial Strategy,Intellectual Property Office,29/05/2018,Pay Costs,Patent Directorate,Brook Street (UK) Ltd,30157063,531.00,Not Applicable
Department for Business Energy and Industrial Strategy,Intellectual Property Office,29/05/2018,Pay Costs,Patent Directorate,Brook Street (UK) Ltd,30157064,621.32,Not Applicable
Department for Business Energy and Industrial Strategy,Intellectual Property Office,29/05/2018,Pay Costs,Patent Directorate,Brook Street (UK) Ltd,30157065,617.16,Not Applicable
Department for Business Energy and Industrial Strategy,Intellectual Property Office,29/05/2018,Pay Costs,Patent Directorate,Brook Street (UK) Ltd,30157066,531.00,Not Applicable
Department for Business Energy and Industrial Strategy,Intellectual Property Office,29/05/2018,Pay Costs,Patent Directorate,Brook Street (UK) Ltd,30157067,561.14,Not Applicable
Department for Business Energy and Industrial Strategy,Intellectual Property Office,29/05/2018,Pay Costs,Patent Directorate,Brook Street (UK) Ltd,30157068,553.67,Not Applicable
Department for Business Energy and Industrial Strategy,Intellectual Property Office,29/05/2018,Pay Costs,Patent Directorate,Brook Street (UK) Ltd,30157069,561.14,Not Applicable
Department for Business Energy and Industrial Strategy,Intellectual Property Office,29/05/2018,Pay Costs,Patent Directorate,Brook Street (UK) Ltd,30157072,614.70,Not Applicable
Department for Business Energy and Industrial Strategy,Intellectual Property Office,29/05/2018,Pay Costs,IT Directorate,Brook Street (UK) Ltd,30157074,824.87,Not Applicable
Department for Business Energy and Industrial Strategy,Intellectual Property Office,29/05/2018,Pay Costs,IT Directorate,Brook Street (UK) Ltd,30157075,618.79,Not Applicable
Department for Business Energy and Industrial Strategy,Intellectual Property Office,29/05/2018,Pay Costs,Patent Directorate,Brook Street (UK) Ltd,30157077,532.80,Not Applicable
Department for Business Energy and Industrial Strategy,Intellectual Property Office,29/05/2018,Pay Costs,Patent Directorate,Brook Street (UK) Ltd,30157081,553.22,Not Applicable
Department for Business Energy and Industrial Strategy,Intellectual Property Office,29/05/2018,Pay Costs,Trade Mark Directorate,Brook Street (UK) Ltd,30157082,594.07,Not Applicable
Department for Business Energy and Industrial Strategy,Intellectual Property Office,08/05/2018,Information Technology,IT Directorate,Capita Business Services  Ltd,LO10264008,3500.94,Not Applicable
Department for Business Energy and Industrial Strategy,Intellectual Property Office,08/05/2018,Information Technology,IT Directorate,Capita Business Services  Ltd,LO10264008,7484.36,Not Applicable
Department for Business Energy and Industrial Strategy,Intellectual Property Office,08/05/2018,Information Technology,IT Directorate,Capita Business Services  Ltd,LO10264008,2958.82,Not Applicable
Department for Business Energy and Industrial Strategy,Intellectual Property Office,08/05/2018,Information Technology,IT Directorate,Capita Business Services  Ltd,LO10264008,1717.54,Not Applicable
Department for Business Energy and Industrial Strategy,Intellectual Property Office,08/05/2018,Information Technology,IT Directorate,Capita Business Services  Ltd,LO10264008,1419.30,Not Applicable
Department for Business Energy and Industrial Strategy,Intellectual Property Office,08/05/2018,Information Technology,IT Directorate,Capita Business Services  Ltd,LO10264008,3904.09,Not Applicable
Department for Business Energy and Industrial Strategy,Intellectual Property Office,08/05/2018,Information Technology,IT Directorate,Capita Business Services  Ltd,LO10264008,1970.74,Not Applicable
Department for Business Energy and Industrial Strategy,Intellectual Property Office,15/05/2018,Information Technology,IT Directorate,Capita Business Services  Ltd,LO10265890,2998.80,Not Applicable
Department for Business Energy and Industrial Strategy,Intellectual Property Office,15/05/2018,Information Technology,IT Directorate,Capita Business Services  Ltd,LO10265890,5712.14,Not Applicable
Department for Business Energy and Industrial Strategy,Intellectual Property Office,15/05/2018,Information Technology,IT Directorate,Capita Business Services  Ltd,LO10265890,2998.80,Not Applicable
Department for Business Energy and Industrial Strategy,Intellectual Property Office,15/05/2018,Information Technology,IT Directorate,Capita Business Services  Ltd,LO10265890,2939.60,Not Applicable
Department for Business Energy and Industrial Strategy,Intellectual Property Office,15/05/2018,Information Technology,International Policy Directorate,Capita Business Services  Ltd,LO10265890,2952.78,Not Applicable
Department for Business Energy and Industrial Strategy,Intellectual Property Office,15/05/2018,Information Technology,IT Directorate,Capita Business Services  Ltd,LO10265890,3502.44,Not Applicable
Department for Business Energy and Industrial Strategy,Intellectual Property Office,15/05/2018,Information Technology,IT Directorate,Capita Business Services  Ltd,LO10265890,2958.82,Not Applicable
Department for Business Energy and Industrial Strategy,Intellectual Property Office,15/05/2018,Information Technology,IT Directorate,Capita Business Services  Ltd,LO10265890,1451.74,Not Applicable
Department for Business Energy and Industrial Strategy,Intellectual Property Office,15/05/2018,Information Technology,IT Directorate,Capita Business Services  Ltd,LO10265890,2998.80,Not Applicable
Department for Business Energy and Industrial Strategy,Intellectual Property Office,15/05/2018,Information Technology,IT Directorate,Capita Business Services  Ltd,LO10265890,5022.09,Not Applicable
Department for Business Energy and Industrial Strategy,Intellectual Property Office,15/05/2018,Information Technology,IT Directorate,Capita Business Services  Ltd,LO10265890,2471.64,Not Applicable
Department for Business Energy and Industrial Strategy,Intellectual Property Office,15/05/2018,Information Technology,IT Directorate,Capita Business Services  Ltd,LO10265890,890.84,Not Applicable
Department for Business Energy and Industrial Strategy,Intellectual Property Office,15/05/2018,Information Technology,IT Directorate,Capita Business Services  Ltd,LO10265890,14498.95,Not Applicable
Department for Business Energy and Industrial Strategy,Intellectual Property Office,21/05/2018,Information Technology,International Policy Directorate,Capita Business Services  Ltd,LO10267956,2362.22,Not Applicable
Department for Business Energy and Industrial Strategy,Intellectual Property Office,21/05/2018,Information Technology,IT Directorate,Capita Business Services  Ltd,LO10267956,2353.67,Not Applicable
Department for Business Energy and Industrial Strategy,Intellectual Property Office,21/05/2018,Information Technology,IT Directorate,Capita Business Services  Ltd,LO10267956,4536.97,Not Applicable
Department for Business Energy and Industrial Strategy,Intellectual Property Office,21/05/2018,Information Technology,IT Directorate,Capita Business Services  Ltd,LO10267956,2598.96,Not Applicable
Department for Business Energy and Industrial Strategy,Intellectual Property Office,21/05/2018,Information Technology,IT Directorate,Capita Business Services  Ltd,LO10267956,276.22,Not Applicable
Department for Business Energy and Industrial Strategy,Intellectual Property Office,21/05/2018,Information Technology,IT Directorate,Capita Business Services  Ltd,LO10267956,1121.80,Not Applicable
Department for Business Energy and Industrial Strategy,Intellectual Property Office,21/05/2018,Information Technology,International Policy Directorate,Capita Business Services  Ltd,LO10267956,2952.78,Not Applicable
Department for Business Energy and Industrial Strategy,Intellectual Property Office,21/05/2018,Information Technology,IT Directorate,Capita Business Services  Ltd,LO10267956,2800.75,Not Applicable
Department for Business Energy and Industrial Strategy,Intellectual Property Office,21/05/2018,Information Technology,IT Directorate,Capita Business Services  Ltd,LO10267956,2505.49,Not Applicable
Department for Business Energy and Industrial Strategy,Intellectual Property Office,21/05/2018,Information Technology,IT Directorate,Capita Business Services  Ltd,LO10267956,9638.77,Not Applicable
Department for Business Energy and Industrial Strategy,Intellectual Property Office,21/05/2018,Information Technology,IT Directorate,Capita Business Services  Ltd,LO10267956,3521.16,Not Applicable
Department for Business Energy and Industrial Strategy,Intellectual Property Office,29/05/2018,Information Technology,IT Directorate,Capita Business Services  Ltd,LO10268378,3325.69,Not Applicable
Department for Business Energy and Industrial Strategy,Intellectual Property Office,29/05/2018,Information Technology,IT Directorate,Capita Business Services  Ltd,LO10268378,2505.49,Not Applicable
Department for Business Energy and Industrial Strategy,Intellectual Property Office,29/05/2018,Information Technology,IT Directorate,Capita Business Services  Ltd,LO10268378,8175.56,Not Applicable
Department for Business Energy and Industrial Strategy,Intellectual Property Office,29/05/2018,Information Technology,IT Directorate,Capita Business Services  Ltd,LO10268378,2554.84,Not Applicable
Department for Business Energy and Industrial Strategy,Intellectual Property Office,29/05/2018,Information Technology,IT Directorate,Capita Business Services  Ltd,LO10268378,2458.09,Not Applicable
Department for Business Energy and Industrial Strategy,Intellectual Property Office,29/05/2018,Information Technology,IT Directorate,Capita Business Services  Ltd,LO10268378,4719.58,Not Applicable
Department for Business Energy and Industrial Strategy,Intellectual Property Office,29/05/2018,Information Technology,IT Directorate,Capita Business Services  Ltd,LO10268378,2809.44,Not Applicable
Department for Business Energy and Industrial Strategy,Intellectual Property Office,29/05/2018,Information Technology,IT Directorate,Capita Business Services  Ltd,LO10268378,2139.08,Not Applicable
Department for Business Energy and Industrial Strategy,Intellectual Property Office,29/05/2018,Information Technology,IT Directorate,Capita Business Services  Ltd,LO10268378,2828.17,Not Applicable
Department for Business Energy and Industrial Strategy,Intellectual Property Office,29/05/2018,Information Technology,IT Directorate,Capita Business Services  Ltd,LO10268378,3832.12,Not Applicable
Department for Business Energy and Industrial Strategy,Intellectual Property Office,15/05/2018,Miscellaneous Expenses General,People Places & Serv Directorate,Capital Law LLP,60000544,1704.00,Not Applicable
Department for Business Energy and Industrial Strategy,Intellectual Property Office,15/05/2018,Miscellaneous Expenses General,People Places & Serv Directorate,Capital Law LLP,60000765,867.60,Not Applicable
Department for Business Energy and Industrial Strategy,Intellectual Property Office,21/05/2018,Staff Costs,People Places & Serv Directorate,CIPFA,3136173,2388.00,Not Applicable
Department for Business Energy and Industrial Strategy,Intellectual Property Office,02/05/2018,Staff Costs,People Places & Serv Directorate,Computeraid Ltd,21487,2712.00,Not Applicable
Department for Business Energy and Industrial Strategy,Intellectual Property Office,21/05/2018,Accommodation,People Places & Serv Directorate,Corona Energy,13041780,779.42,Not Applicable
Department for Business Energy and Industrial Strategy,Intellectual Property Office,21/05/2018,Accommodation,People Places & Serv Directorate,Corona Energy,13041793,2038.64,Not Applicable
Department for Business Energy and Industrial Strategy,Intellectual Property Office,03/05/2018,Postage & Delivery Costs,People Places & Serv Directorate,DHL International (UK) Ltd,BRS1437131,1127.16,Not Applicable
Department for Business Energy and Industrial Strategy,Intellectual Property Office,11/05/2018,Postage & Delivery Costs,People Places & Serv Directorate,DHL International (UK) Ltd,BRS1463681,763.84,Not Applicable
Department for Business Energy and Industrial Strategy,Intellectual Property Office,18/05/2018,Postage & Delivery Costs,People Places & Serv Directorate,DHL International (UK) Ltd,BRS1481771,2433.90,Not Applicable
Department for Business Energy and Industrial Strategy,Intellectual Property Office,24/05/2018,Postage & Delivery Costs,People Places & Serv Directorate,DHL International (UK) Ltd,BRS1499574,740.71,Not Applicable
Department for Business Energy and Industrial Strategy,Intellectual Property Office,31/05/2018,Postage & Delivery Costs,People Places & Serv Directorate,DHL International (UK) Ltd,BRS1517914,2362.55,Not Applicable
Department for Business Energy and Industrial Strategy,Intellectual Property Office,21/05/2018,Miscellaneous Expenses General,People Places & Serv Directorate,Eversheds Sutherland (Internationa,91710897,2706.00,Not Applicable
Department for Business Energy and Industrial Strategy,Intellectual Property Office,21/05/2018,Miscellaneous Expenses General,People Places & Serv Directorate,Eversheds Sutherland (Internationa,91717791,1809.00,Not Applicable
Department for Business Energy and Industrial Strategy,Intellectual Property Office,03/05/2018,Supporting UK Business,Innovation Directorate,GovNet Communications,136346,536.40,Not Applicable
Department for Business Energy and Industrial Strategy,Intellectual Property Office,21/05/2018,Supporting UK Business,Innovation Directorate,Greaves Brewster LLP,24160,2600.00,Not Applicable
Department for Business Energy and Industrial Strategy,Intellectual Property Office,17/05/2018,Supporting UK Business,Innovation Directorate,Harrison Goddard Foote,484484,2600.00,Not Applicable
Department for Business Energy and Industrial Strategy,Intellectual Property Office,10/05/2018,Accommodation,People Places & Serv Directorate,HFX Ltd,26823,13009.73,Not Applicable
Department for Business Energy and Industrial Strategy,Intellectual Property Office,10/05/2018,Accommodation,People Places & Serv Directorate,HFX Ltd,26824,-5203.90,Not Applicable
Department for Business Energy and Industrial Strategy,Intellectual Property Office,31/05/2018,Accommodation,People Places & Serv Directorate,HFX Ltd,26825,7320.00,Not Applicable
Department for Business Energy and Industrial Strategy,Intellectual Property Office,01/05/2018,Staff Costs,People Places & Serv Directorate,Knowledge Academy,262293,1794.00,Not Applicable
Department for Business Energy and Industrial Strategy,Intellectual Property Office,03/05/2018,Information Technology,IT Directorate,LA International Computer Consulta,LA491212,2313.76,Not Applicable
Department for Business Energy and Industrial Strategy,Intellectual Property Office,03/05/2018,Information Technology,IT Directorate,LA International Computer Consulta,LA491213,3146.88,Not Applicable
Department for Business Energy and Industrial Strategy,Intellectual Property Office,16/05/2018,Information Technology,IT Directorate,LA International Computer Consulta,LA493047,1975.31,Not Applicable
Department for Business Energy and Industrial Strategy,Intellectual Property Office,16/05/2018,Information Technology,IT Directorate,LA International Computer Consulta,LA493048,6293.76,Not Applicable
Department for Business Energy and Industrial Strategy,Intellectual Property Office,24/05/2018,Telecoms,IT Directorate,LA International Computer Consulta,LA494685,3641.70,Not Applicable
Department for Business Energy and Industrial Strategy,Intellectual Property Office,24/05/2018,Telecoms,IT Directorate,LA International Computer Consulta,LA494686,2910.86,Not Applicable
Department for Business Energy and Industrial Strategy,Intellectual Property Office,21/05/2018,Postage & Delivery Costs,People Places & Serv Directorate,Zenith,89737,1033.20,Not Applicable
Department for Business Energy and Industrial Strategy,Intellectual Property Office,21/05/2018,Legal & Hearings,Patent Directorate,Marten Walsh Cherer Ltd,98895,686.40,Not Applicable
Department for Business Energy and Industrial Strategy,Intellectual Property Office,21/05/2018,Legal & Hearings,Patent Directorate,Marten Walsh Cherer Ltd,98904,530.40,Not Applicable
Department for Business Energy and Industrial Strategy,Intellectual Property Office,22/05/2018,Postage & Delivery Costs,People Places & Serv Directorate,Neopost Finance Ltd,NE3026121-03MAY,5000.00,Not Applicable
Department for Business Energy and Industrial Strategy,Intellectual Property Office,22/05/2018,Postage & Delivery Costs,People Places & Serv Directorate,Neopost Finance Ltd,NE9000335-21MAY,10000.00,Not Applicable
Department for Business Energy and Industrial Strategy,Intellectual Property Office,21/05/2018,Miscellaneous Expenses General,International Policy Directorate,Newcastle City Council,1.80001E+12,720.00,Not Applicable
Department for Business Energy and Industrial Strategy,Intellectual Property Office,02/05/2018,Staff Costs,IT Directorate,Palladium Training & Consultancy,4218,1546.80,Not Applicable
Department for Business Energy and Industrial Strategy,Intellectual Property Office,03/05/2018,Postage & Delivery Costs,People Places & Serv Directorate,Parcelforce Worldwide,9056506719,1687.61,Not Applicable
Department for Business Energy and Industrial Strategy,Intellectual Property Office,11/05/2018,Miscellaneous Expenses General,People Places & Serv Directorate,POSSA,80518,617.00,Not Applicable
Department for Business Energy and Industrial Strategy,Intellectual Property Office,23/05/2018,Information Technology,IT Directorate,QA Ltd,QACC000302,-13572.00,Not Applicable
Department for Business Energy and Industrial Strategy,Intellectual Property Office,23/05/2018,Information Technology,IT Directorate,QA Ltd,QACC000303,-18096.00,Not Applicable
Department for Business Energy and Industrial Strategy,Intellectual Property Office,23/05/2018,Information Technology,IT Directorate,QA Ltd,QACI0002572,13572.00,Not Applicable
Department for Business Energy and Industrial Strategy,Intellectual Property Office,23/05/2018,Information Technology,IT Directorate,QA Ltd,QACI002813,20184.00,Not Applicable
Department for Business Energy and Industrial Strategy,Intellectual Property Office,23/05/2018,Information Technology,IT Directorate,QA Ltd,QACI002815,18096.00,Not Applicable
Department for Business Energy and Industrial Strategy,Intellectual Property Office,23/05/2018,Information Technology,IT Directorate,QA Ltd,QACI002878,23316.00,Not Applicable
Department for Business Energy and Industrial Strategy,Intellectual Property Office,04/05/2018,Postage & Delivery Costs,People Places & Serv Directorate,Royal Mail,9056471989,2080.12,Not Applicable
Department for Business Energy and Industrial Strategy,Intellectual Property Office,18/05/2018,Postage & Delivery Costs,People Places & Serv Directorate,Royal Mail,9056552893,1614.72,Not Applicable
Department for Business Energy and Industrial Strategy,Intellectual Property Office,31/05/2018,Postage & Delivery Costs,People Places & Serv Directorate,Royal Mail,9056637404,2211.91,Not Applicable
Department for Business Energy and Industrial Strategy,Intellectual Property Office,04/05/2018,Accommodation,People Places & Serv Directorate,Senator International Ltd,S01446254,687.68,Not Applicable
Department for Business Energy and Industrial Strategy,Intellectual Property Office,03/05/2018,Accommodation,People Places & Serv Directorate,Senator International Ltd,S01446255,3084.48,Not Applicable
Department for Business Energy and Industrial Strategy,Intellectual Property Office,04/05/2018,Accommodation,People Places & Serv Directorate,Senator International Ltd,S01448983,527.72,Not Applicable
Department for Business Energy and Industrial Strategy,Intellectual Property Office,18/05/2018,Accommodation,People Places & Serv Directorate,Senator International Ltd,S01452334,12547.20,Not Applicable
Department for Business Energy and Industrial Strategy,Intellectual Property Office,24/05/2018,Accommodation,People Places & Serv Directorate,Specialist Computer Centres Plc,OP-C157355,-1463.92,Not Applicable
Department for Business Energy and Industrial Strategy,Intellectual Property Office,24/05/2018,Accommodation,People Places & Serv Directorate,Specialist Computer Centres Plc,OP-M419977,18601.86,Not Applicable
Department for Business Energy and Industrial Strategy,Intellectual Property Office,29/05/2018,Information Technology,IT Directorate,Specialist Computer Centres Plc,OP-M445288,5897.34,Not Applicable
Department for Business Energy and Industrial Strategy,Intellectual Property Office,25/05/2018,Information Technology,IT Directorate,Specialist Computer Centres Plc,OP-M445846,2233.44,Not Applicable
Department for Business Energy and Industrial Strategy,Intellectual Property Office,25/05/2018,Information Technology,IT Directorate,Specialist Computer Centres Plc,OP/M441005,91272.26,Not Applicable
Department for Business Energy and Industrial Strategy,Intellectual Property Office,02/05/2018,Miscellaneous Expenses General,People Places & Serv Directorate,Stonewall Equality Ltd,56101,3150.00,Not Applicable
Department for Business Energy and Industrial Strategy,Intellectual Property Office,08/05/2018,Travel & Subsistence,Trade Mark Directorate,Veezu Ltd T/A Dragon Taxis (Newpor,5787,61.08,Not Applicable
Department for Business Energy and Industrial Strategy,Intellectual Property Office,08/05/2018,Travel & Subsistence,Innovation Directorate,Veezu Ltd T/A Dragon Taxis (Newpor,5787,109.80,Not Applicable
Department for Business Energy and Industrial Strategy,Intellectual Property Office,08/05/2018,Travel & Subsistence,Innovation Directorate,Veezu Ltd T/A Dragon Taxis (Newpor,5787,77.64,Not Applicable
Department for Business Energy and Industrial Strategy,Intellectual Property Office,08/05/2018,Travel & Subsistence,Copyright and Enforcement Directorate,Veezu Ltd T/A Dragon Taxis (Newpor,5787,75.96,Not Applicable
Department for Business Energy and Industrial Strategy,Intellectual Property Office,08/05/2018,Travel & Subsistence,People Places & Serv Directorate,Veezu Ltd T/A Dragon Taxis (Newpor,5787,98.34,Not Applicable
Department for Business Energy and Industrial Strategy,Intellectual Property Office,08/05/2018,Travel & Subsistence,People Places & Serv Directorate,Veezu Ltd T/A Dragon Taxis (Newpor,5787,222.90,Not Applicable
Department for Business Energy and Industrial Strategy,Intellectual Property Office,08/05/2018,Travel & Subsistence,Projects,Veezu Ltd T/A Dragon Taxis (Newpor,5787,21.12,Not Applicable
Department for Business Energy and Industrial Strategy,Intellectual Property Office,08/05/2018,Travel & Subsistence,IT Directorate,Veezu Ltd T/A Dragon Taxis (Newpor,5787,16.56,Not Applicable
Department for Business Energy and Industrial Strategy,Intellectual Property Office,08/05/2018,Travel & Subsistence,Trade Mark Directorate,Veezu Ltd T/A Dragon Taxis (Newpor,5787,127.20,Not Applicable
Department for Business Energy and Industrial Strategy,Intellectual Property Office,08/05/2018,Travel & Subsistence,People Places & Serv Directorate,Veezu Ltd T/A Dragon Taxis (Newpor,5787,25.32,Not Applicable
Department for Business Energy and Industrial Strategy,Intellectual Property Office,08/05/2018,Travel & Subsistence,Innovation Directorate,Veezu Ltd T/A Dragon Taxis (Newpor,5787,81.96,Not Applicable
Department for Business Energy and Industrial Strategy,Intellectual Property Office,08/05/2018,Travel & Subsistence,Copyright and Enforcement Directorate,Veezu Ltd T/A Dragon Taxis (Newpor,5787,114.12,Not Applicable
Department for Business Energy and Industrial Strategy,Intellectual Property Office,08/05/2018,Travel & Subsistence,People Places & Serv Directorate,Veezu Ltd T/A Dragon Taxis (Newpor,5787,311.88,Not Applicable
Department for Business Energy and Industrial Strategy,Intellectual Property Office,08/05/2018,Travel & Subsistence,International Policy Directorate,Veezu Ltd T/A Dragon Taxis (Newpor,5787,103.14,Not Applicable
Department for Business Energy and Industrial Strategy,Intellectual Property Office,08/05/2018,Travel & Subsistence,IT Directorate,Veezu Ltd T/A Dragon Taxis (Newpor,5787,34.80,Not Applicable
Department for Business Energy and Industrial Strategy,Intellectual Property Office,08/05/2018,Travel & Subsistence,Trade Mark Directorate,Veezu Ltd T/A Dragon Taxis (Newpor,5787,317.40,Not Applicable
Department for Business Energy and Industrial Strategy,Intellectual Property Office,08/05/2018,Travel & Subsistence,IT Directorate,Veezu Ltd T/A Dragon Taxis (Newpor,5787,16.32,Not Applicable
Department for Business Energy and Industrial Strategy,Intellectual Property Office,31/05/2018,Office Machinery,People Places & Serv Directorate,Xerox Finance,97229481,2983.45,Not Applicable
Department for Business Energy and Industrial Strategy,Intellectual Property Office,31/05/2018,Office Machinery,People Places & Serv Directorate,Xerox Finance,97229482,2557.08,Not Applicable
Department for Business Energy and Industrial Strategy,Intellectual Property Office,03/05/2018,Marketing & Publicity,Innovation Directorate,Aardman Animations Ltd,35618,820.80,Not Applicable
Department for Business Energy and Industrial Strategy,Intellectual Property Office,29/05/2018,Marketing & Publicity,Innovation Directorate,Aardman Animations Ltd,35760,820.80,Not Applicable
Department for Business Energy and Industrial Strategy,Intellectual Property Office,11/05/2018,Office Supplies,People Places & Serv Directorate,Antalis,7691999,1969.88,Not Applicable
Department for Business Energy and Industrial Strategy,Intellectual Property Office,09/05/2018,Office Supplies,People Places & Serv Directorate,Antalis,7703714,768.76,Not Applicable
Department for Business Energy and Industrial Strategy,Intellectual Property Office,29/05/2018,Office Supplies,People Places & Serv Directorate,Antalis,7746875,950.20,Not Applicable
Department for Business Energy and Industrial Strategy,Intellectual Property Office,31/05/2018,Office Supplies,People Places & Serv Directorate,Antalis,7757938,869.82,Not Applicable
Department for Business Energy and Industrial Strategy,Intellectual Property Office,18/05/2018,Information Technology,IT Directorate,Computacenter (UK) ltd,3881504923,22494.96,Not Applicable
Department for Business Energy and Industrial Strategy,Intellectual Property Office,04/05/2018,Information Technology,IT Directorate,Computacenter (UK) ltd,3881521815,5373.11,Not Applicable
Department for Business Energy and Industrial Strategy,Intellectual Property Office,29/05/2018,Information Technology,IT Directorate,Computacenter (UK) ltd,3881540070,6813.60,Not Applicable
Department for Business Energy and Industrial Strategy,Intellectual Property Office,29/05/2018,Information Technology,IT Directorate,Computacenter (UK) ltd,3881540071,9496.20,Not Applicable
Department for Business Energy and Industrial Strategy,Intellectual Property Office,29/05/2018,Telecoms,IT Directorate,Vodafone Corporate Ltd,87961391,4167.22,Not Applicable
Department for Business Energy and Industrial Strategy,Intellectual Property Office,02/05/2018,Supporting UK Business,International Policy Directorate,FOREIGN & COMMONWEALTH OFFICE,1103581,22394.20,Not Applicable
Department for Business Energy and Industrial Strategy,Intellectual Property Office,23/05/2018,Supporting UK Business,International Policy Directorate,FOREIGN & COMMONWEALTH OFFICE,1103801,2261.08,Not Applicable
Department for Business Energy and Industrial Strategy,Intellectual Property Office,24/05/2018,Supporting UK Business,International Policy Directorate,FOREIGN & COMMONWEALTH OFFICE,1104037,18268.30,Not Applicable
Department for Business Energy and Industrial Strategy,Intellectual Property Office,08/05/2018,Computer Contracts,People Places & Serv Directorate,HM TREASURY,40976,4141.98,Not Applicable
Department for Business Energy and Industrial Strategy,Intellectual Property Office,17/05/2018,Supporting UK Business,Innovation Directorate,3volution LLP,6296,2600.00,Not Applicable
Department for Business Energy and Industrial Strategy,Intellectual Property Office,18/05/2018,Miscellaneous Expenses General,People Places & Serv Directorate,Xexec Limited,39061,545.64,Not Applicable
Department for Business Energy and Industrial Strategy,Intellectual Property Office,02/05/2018,Telecoms,IT Directorate,ZEN INTERNET LIMITED,25143399,679.19,Not Applicable
Department for Business Energy and Industrial Strategy,Intellectual Property Office,14/05/2018,Information Technology,IT Directorate,HORNBILL SERVICE MANAGEMENT LIMITE,INV14003,14815.80,Not Applicable
Department for Business Energy and Industrial Strategy,Intellectual Property Office,31/05/2018,Miscellaneous Expenses General,IT Directorate,HORNBILL SERVICE MANAGEMENT LIMITE,INV14062,14400.00,Not Applicable
Department for Business Energy and Industrial Strategy,Intellectual Property Office,14/05/2018,Supporting UK Business,Innovation Directorate,LAWRIE INTELLECTUAL PROPERTY,111567,2600.00,Not Applicable
Department for Business Energy and Industrial Strategy,Intellectual Property Office,03/05/2018,Supporting UK Business,Innovation Directorate,STEPHENS SCOWN LLP,91766,2600.00,Not Applicable
Department for Business Energy and Industrial Strategy,Intellectual Property Office,03/05/2018,Miscellaneous Expenses General,Trade Mark Directorate,Wales Quality Centre Ltd,11212,1194.00,Not Applicable
Department for Business Energy and Industrial Strategy,Intellectual Property Office,15/05/2018,Postage & Delivery Costs,People Places & Serv Directorate,CitySprint (UK) Ltd,2547578,7405.31,Not Applicable
Department for Business Energy and Industrial Strategy,Intellectual Property Office,18/05/2018,Accommodation,People Places & Serv Directorate,EDF ENERGY,4105362,-838.66,Not Applicable
Department for Business Energy and Industrial Strategy,Intellectual Property Office,18/05/2018,Accommodation,People Places & Serv Directorate,EDF ENERGY,4224491,34761.68,Not Applicable
Department for Business Energy and Industrial Strategy,Intellectual Property Office,31/05/2018,Accommodation,People Places & Serv Directorate,EDF ENERGY,4267962,838.65,Not Applicable
Department for Business Energy and Industrial Strategy,Intellectual Property Office,22/05/2018,Marketing & Publicity,Innovation Directorate,DAN ANTHONY PRESENTATIONS LTD,000 183,1600.00,Not Applicable
Department for Business Energy and Industrial Strategy,Intellectual Property Office,15/05/2018,Information Technology,IT Directorate,Loadbalancer.org Limited,INV-3405,5988.00,Not Applicable
Department for Business Energy and Industrial Strategy,Intellectual Property Office,21/05/2018,Pay Costs,People Places & Serv Directorate,Sodexo Motivation Solutions UK Ltd,3435017,12305.99,Not Applicable
Department for Business Energy and Industrial Strategy,Intellectual Property Office,21/05/2018,Pay Costs,People Places & Serv Directorate,Sodexo Motivation Solutions UK Ltd,3435104,9120.03,Not Applicable
Department for Business Energy and Industrial Strategy,Intellectual Property Office,25/05/2018,Telecoms,IT Directorate,EE Ltd,1273994358,6224.78,Not Applicable
Department for Business Energy and Industrial Strategy,Intellectual Property Office,22/05/2018,Legal & Hearings,Patent Directorate,Government Legal Department,454733,189.72,Not Applicable
Department for Business Energy and Industrial Strategy,Intellectual Property Office,22/05/2018,Legal & Hearings,Patent Directorate,Government Legal Department,454733,2883.72,Not Applicable
Department for Business Energy and Industrial Strategy,Intellectual Property Office,22/05/2018,Legal & Hearings,Trade Mark Directorate,Government Legal Department,454798,7896.76,Not Applicable
Department for Business Energy and Industrial Strategy,Intellectual Property Office,23/05/2018,Legal & Hearings,Trade Mark Directorate,Government Legal Department,454946,4307.16,Not Applicable
Department for Business Energy and Industrial Strategy,Intellectual Property Office,30/05/2018,Miscellaneous Expenses General,People Places & Serv Directorate,The South Wales Bicycle Company,14 BIKES IPO,684.97,Not Applicable
Department for Business Energy and Industrial Strategy,Intellectual Property Office,08/05/2018,Telecoms,IT Directorate,Personal expenses,UK10-052018-482,3322.08,Not Applicable
Department for Business Energy and Industrial Strategy,Intellectual Property Office,23/05/2018,Information Technology,IT Directorate,Personal expenses,UK110123,6240.00,Not Applicable
Department for Business Energy and Industrial Strategy,Intellectual Property Office,10/05/2018,Office Machinery,People Places & Serv Directorate,Midshire Business Systems (Norther,360166,1357.92,Not Applicable
Department for Business Energy and Industrial Strategy,Intellectual Property Office,22/05/2018,Accommodation,People Places & Serv Directorate,Quality Floorcare Ltd,15705,6662.40,Not Applicable
Department for Business Energy and Industrial Strategy,Intellectual Property Office,29/05/2018,Staff Costs,People Places & Serv Directorate,The Clive Davis Partnership Ltd.,CDSC-2862,4320.00,Not Applicable
Department for Business Energy and Industrial Strategy,Intellectual Property Office,17/05/2018,Information Technology,IT Directorate,Verisign,520006183,4463.39,Not Applicable
Department for Business Energy and Industrial Strategy,Intellectual Property Office,23/05/2018,Information Technology,Patent Directorate,Royal Society of Chemistry,RSC000022283,16575.00,Not Applicable
Department for Business Energy and Industrial Strategy,Intellectual Property Office,15/05/2018,Miscellaneous Expenses General,People Places & Serv Directorate,Insight Health Screening,7091,2475.00,Not Applicable
Department for Business Energy and Industrial Strategy,Intellectual Property Office,04/05/2018,Accommodation,People Places & Serv Directorate,SIG TRADING LTD,7.0336E+11,1056.84,Not Applicable
Department for Business Energy and Industrial Strategy,Intellectual Property Office,14/05/2018,Miscellaneous Expenses General,Innovation Directorate,Elsevier BV,M366966,3377.17,Not Applicable
Department for Business Energy and Industrial Strategy,Intellectual Property Office,03/05/2018,Supporting UK Business,Innovation Directorate,Forresters clear direction,KBO-5757948,2600.00,Not Applicable
Department for Business Energy and Industrial Strategy,Intellectual Property Office,01/05/2018,Supporting UK Business,Innovation Directorate,Vault IP Ltd,INV-1023,2600.00,Not Applicable
Department for Business Energy and Industrial Strategy,Intellectual Property Office,17/05/2018,Supporting UK Business,Innovation Directorate,Vault IP Ltd,INV-1075,2600.00,Not Applicable
Department for Business Energy and Industrial Strategy,Intellectual Property Office,23/05/2018,Office Machinery,People Places & Serv Directorate,Siemens Financial Services Limited,244-18-0190852,2088.00,Not Applicable
Department for Business Energy and Industrial Strategy,Intellectual Property Office,01/05/2018,Supporting UK Business,Copyright and Enforcement Directorate,Copyright Hub Foundation,TCH0086,25000.00,Not Applicable
Department for Business Energy and Industrial Strategy,Intellectual Property Office,11/05/2018,Miscellaneous Expenses General,Innovation Directorate,University of Hertfordshire,129454,15962.40,Not Applicable
Department for Business Energy and Industrial Strategy,Intellectual Property Office,17/05/2018,Supporting UK Business,Innovation Directorate,Ashfords LLP,643840,2600.00,Not Applicable
Department for Business Energy and Industrial Strategy,Intellectual Property Office,08/05/2018,Staff Costs,People Places & Serv Directorate,Involve Me Training and Developmen,240,600.00,Not Applicable
Department for Business Energy and Industrial Strategy,Intellectual Property Office,04/05/2018,Staff Costs,People Places & Serv Directorate,Involve Me Training and Developmen,242,600.00,Not Applicable
Department for Business Energy and Industrial Strategy,Intellectual Property Office,04/05/2018,Staff Costs,People Places & Serv Directorate,Involve Me Training and Developmen,243,600.00,Not Applicable
Department for Business Energy and Industrial Strategy,Intellectual Property Office,18/05/2018,Staff Costs,People Places & Serv Directorate,Involve Me Training and Developmen,248,1200.00,Not Applicable
Department for Business Energy and Industrial Strategy,Intellectual Property Office,18/05/2018,Staff Costs,People Places & Serv Directorate,Involve Me Training and Developmen,249,1200.00,Not Applicable
Department for Business Energy and Industrial Strategy,Intellectual Property Office,18/05/2018,Staff Costs,People Places & Serv Directorate,Involve Me Training and Developmen,250,1200.00,Not Applicable
Department for Business Energy and Industrial Strategy,Intellectual Property Office,21/05/2018,Supporting UK Business,Innovation Directorate,Culverstons IP,18-05-0005,2600.00,Not Applicable
Department for Business Energy and Industrial Strategy,Intellectual Property Office,02/05/2018,Miscellaneous Expenses General,IT Directorate,Responsiv Solutions Limited,RSL0486,23962.80,Not Applicable
Department for Business Energy and Industrial Strategy,Intellectual Property Office,18/05/2018,Intangible Assets at Cost,Projects,Responsiv Solutions Limited,RSL0487,146992.84,Not Applicable
Department for Business Energy and Industrial Strategy,Intellectual Property Office,21/05/2018,Information Technology,Projects,Responsiv Solutions Limited,RSL0488,26400.00,Not Applicable
Department for Business Energy and Industrial Strategy,Intellectual Property Office,17/05/2018,Information Technology,IT Directorate,Responsiv Solutions Limited,RSL0495,11982.01,Not Applicable
Department for Business Energy and Industrial Strategy,Intellectual Property Office,16/05/2018,Staff Costs,IT Directorate,Responsiv Solutions Limited,RSL0497,4776.00,Not Applicable
Department for Business Energy and Industrial Strategy,Intellectual Property Office,21/05/2018,Staff Costs,IT Directorate,Responsiv Solutions Limited,RSL0498,4147.20,Not Applicable
Department for Business Energy and Industrial Strategy,Intellectual Property Office,21/05/2018,Staff Costs,IT Directorate,Responsiv Solutions Limited,RSL0499,10162.80,Not Applicable
Department for Business Energy and Industrial Strategy,Intellectual Property Office,21/05/2018,Supporting UK Business,Innovation Directorate,Shoosmiths LLP,9100234335,2600.00,Not Applicable
Department for Business Energy and Industrial Strategy,Intellectual Property Office,21/05/2018,Accommodation,People Places & Serv Directorate,ENGIE Services Limited,1800033835,3360.00,Not Applicable
Department for Business Energy and Industrial Strategy,Intellectual Property Office,01/05/2018,Miscellaneous Expenses General,People Places & Serv Directorate,Newground CIC,ARINVO-00001989,600.00,Not Applicable
Department for Business Energy and Industrial Strategy,Intellectual Property Office,04/05/2018,Information Technology,IT Directorate,Equal Experts UK Limited,INV-4624,15000.00,Not Applicable
Department for Business Energy and Industrial Strategy,Intellectual Property Office,23/05/2018,Staff Costs,People Places & Serv Directorate,DERYL DIX TRAINING & CONSULTANCY,IPO-019-987,2500.00,Not Applicable
Department for Business Energy and Industrial Strategy,Intellectual Property Office,17/05/2018,Supporting UK Business,Innovation Directorate,Bartle Read Ltd,3637,2599.99,Not Applicable
Department for Business Energy and Industrial Strategy,Intellectual Property Office,23/05/2018,Accommodation,People Places & Serv Directorate,Howdens Joinery Ltd,920-0160054,1508.98,Not Applicable
Department for Business Energy and Industrial Strategy,Intellectual Property Office,09/05/2018,Telecoms,IT Directorate,Colt Technology Services,2.0181E+12,600.00,Not Applicable
Department for Business Energy and Industrial Strategy,Intellectual Property Office,03/05/2018,Accommodation,People Places & Serv Directorate,Accelerate Cleaning Solutions Ltd,5383,2507.77,Not Applicable
Department for Business Energy and Industrial Strategy,Intellectual Property Office,15/05/2018,Accommodation,People Places & Serv Directorate,Shred It Ltd,9502819634,3813.48,Not Applicable
Department for Business Energy and Industrial Strategy,Intellectual Property Office,15/05/2018,Accommodation,People Places & Serv Directorate,Shred It Ltd,9502892512,-2272.68,Not Applicable
Department for Business Energy and Industrial Strategy,Intellectual Property Office,21/05/2018,Accommodation,People Places & Serv Directorate,Shred It Ltd,9502925478,1881.22,Not Applicable
Department for Business Energy and Industrial Strategy,Intellectual Property Office,25/05/2018,Office Supplies,People Places & Serv Directorate,Vinci Construction UK Ltd,18050082,38.64,Not Applicable
Department for Business Energy and Industrial Strategy,Intellectual Property Office,25/05/2018,Miscellaneous Expenses General,IT Directorate,Vinci Construction UK Ltd,18050082,91.44,Not Applicable
Department for Business Energy and Industrial Strategy,Intellectual Property Office,25/05/2018,Miscellaneous Expenses General,People Places & Serv Directorate,Vinci Construction UK Ltd,18050082,462.73,Not Applicable
Department for Business Energy and Industrial Strategy,Intellectual Property Office,25/05/2018,Miscellaneous Expenses General,Copyright and Enforcement Directorate,Vinci Construction UK Ltd,18050082,176.28,Not Applicable
Department for Business Energy and Industrial Strategy,Intellectual Property Office,25/05/2018,Miscellaneous Expenses General,Patent Directorate,Vinci Construction UK Ltd,18050082,732.79,Not Applicable
Department for Business Energy and Industrial Strategy,Intellectual Property Office,25/05/2018,Miscellaneous Expenses General,People Places & Serv Directorate,Vinci Construction UK Ltd,18050082,315.76,Not Applicable
Department for Business Energy and Industrial Strategy,Intellectual Property Office,25/05/2018,Miscellaneous Expenses General,Trade Mark Directorate,Vinci Construction UK Ltd,18050082,177.84,Not Applicable
Department for Business Energy and Industrial Strategy,Intellectual Property Office,25/05/2018,Miscellaneous Expenses General,Trade Mark Directorate,Vinci Construction UK Ltd,18050082,105.55,Not Applicable
Department for Business Energy and Industrial Strategy,Intellectual Property Office,25/05/2018,Miscellaneous Expenses General,People Places & Serv Directorate,Vinci Construction UK Ltd,18050082,1.56,Not Applicable
Department for Business Energy and Industrial Strategy,Intellectual Property Office,25/05/2018,Miscellaneous Expenses General,IT Directorate,Vinci Construction UK Ltd,18050082,19.44,Not Applicable
Department for Business Energy and Industrial Strategy,Intellectual Property Office,25/05/2018,Miscellaneous Expenses General,IT Directorate,Vinci Construction UK Ltd,18050082,158.16,Not Applicable
Department for Business Energy and Industrial Strategy,Intellectual Property Office,25/05/2018,Miscellaneous Expenses General,Patent Directorate,Vinci Construction UK Ltd,18050082,83.34,Not Applicable
Department for Business Energy and Industrial Strategy,Intellectual Property Office,03/05/2018,Supporting UK Business,Innovation Directorate,Keltie LLP,127874,2600.00,Not Applicable
Department for Business Energy and Industrial Strategy,Intellectual Property Office,17/05/2018,Office Supplies,People Places & Serv Directorate,Blake Envelopes,SI0000562396,1057.50,Not Applicable
Department for Business Energy and Industrial Strategy,Intellectual Property Office,11/05/2018,Information Technology,IT Directorate,8X8 Solutions,2167258,1650.60,Not Applicable
Department for Business Energy and Industrial Strategy,Intellectual Property Office,23/05/2018,Miscellaneous Expenses General,Projects,"Positive Cashflow Finance Ltd ""SQA",HSR-BB-AC-2268,12960.00,Not Applicable
Department for Business Energy and Industrial Strategy,Intellectual Property Office,23/05/2018,Miscellaneous Expenses General,Projects,"Positive Cashflow Finance Ltd ""SQA",HSR-BB-AC-2269,11400.00,Not Applicable
Department for Business Energy and Industrial Strategy,Intellectual Property Office,16/05/2018,Miscellaneous Expenses General,Projects,"Positive Cashflow Finance Ltd ""SQA",HSR-BB-AC-2284,15390.00,Not Applicable
Department for Business Energy and Industrial Strategy,Intellectual Property Office,16/05/2018,Miscellaneous Expenses General,Projects,"Positive Cashflow Finance Ltd ""SQA",HSR-BB-AC-2285,12000.00,Not Applicable
Department for Business Energy and Industrial Strategy,Intellectual Property Office,16/05/2018,Miscellaneous Expenses General,Projects,"Positive Cashflow Finance Ltd ""SQA",HSR-BB-AC-2291E-,1440.00,Not Applicable
Department for Business Energy and Industrial Strategy,Intellectual Property Office,15/05/2018,Miscellaneous Expenses General,Projects,"Positive Cashflow Finance Ltd ""SQA",HSR-BB-AC-2291EX,1440.00,Not Applicable
Department for Business Energy and Industrial Strategy,Intellectual Property Office,17/05/2018,Supporting UK Business,Innovation Directorate,The IP Asset Partnership Ltd,6414,2600.00,Not Applicable
Department for Business Energy and Industrial Strategy,Intellectual Property Office,18/05/2018,Accommodation,People Places & Serv Directorate,Brookfield Office Property Managem,2017-235,-31799.95,Not Applicable
Department for Business Energy and Industrial Strategy,Intellectual Property Office,18/05/2018,Accommodation,People Places & Serv Directorate,Brookfield Office Property Managem,2017-258,382060.80,Not Applicable
Department for Business Energy and Industrial Strategy,Intellectual Property Office,03/05/2018,Information Technology,IT Directorate,Perago-Wales,PM009,8400.00,Not Applicable
Department for Business Energy and Industrial Strategy,Intellectual Property Office,17/05/2018,Supporting UK Business,Innovation Directorate,Clarion Solicitors Limited,126474,2600.00,Not Applicable
Department for Business Energy and Industrial Strategy,Intellectual Property Office,15/05/2018,Information Technology,IT Directorate,McAfee Security UK Ltd,901635994,25740.00,Not Applicable
Department for Business Energy and Industrial Strategy,Intellectual Property Office,15/05/2018,Information Technology,IT Directorate,McAfee Security UK Ltd,901636018,8580.00,Not Applicable
Department for Business Energy and Industrial Strategy,Intellectual Property Office,15/05/2018,Information Technology,IT Directorate,McAfee Security UK Ltd,901636019,1716.00,Not Applicable
Department for Business Energy and Industrial Strategy,Intellectual Property Office,15/05/2018,Information Technology,IT Directorate,McAfee Security UK Ltd,901636020,1126.80,Not Applicable
Department for Business Energy and Industrial Strategy,Intellectual Property Office,15/05/2018,Information Technology,IT Directorate,McAfee Security UK Ltd,901636020,2065.80,Not Applicable
Department for Business Energy and Industrial Strategy,Intellectual Property Office,15/05/2018,Information Technology,IT Directorate,McAfee Security UK Ltd,901636056,3192.00,Not Applicable
Department for Business Energy and Industrial Strategy,Intellectual Property Office,14/05/2018,Staff Costs,People Places & Serv Directorate,Bristol Management Centre,PPC1701IPO(3),830.80,Not Applicable
Department for Business Energy and Industrial Strategy,Intellectual Property Office,10/05/2018,Miscellaneous Expenses General,IT Directorate,Acuma Solutions Limited,SIN017985,18510.00,Not Applicable
Department for Business Energy and Industrial Strategy,Intellectual Property Office,03/05/2018,Supporting UK Business,Innovation Directorate,Barker Brettell LLP,342053,2600.00,Not Applicable
Department for Business Energy and Industrial Strategy,Intellectual Property Office,17/05/2018,Office Machinery,IT Directorate,Kyocera Document Solutions UK Limited,1111753,2985.38,Not Applicable
Department for Business Energy and Industrial Strategy,Intellectual Property Office,17/05/2018,Office Machinery,IT Directorate,Kyocera Document Solutions UK Limited,1113102,12471.26,Not Applicable
Department for Business Energy and Industrial Strategy,Intellectual Property Office,15/05/2018,Information Technology,IT Directorate,Howell Technology Group,HTG000303,82649.40,Not Applicable
Department for Business Energy and Industrial Strategy,Intellectual Property Office,02/05/2018,Information Technology,IT Directorate,Millgate Computer Systems Limited,392049,3900.00,Not Applicable
Department for Business Energy and Industrial Strategy,Intellectual Property Office,18/05/2018,Staff Costs,People Places & Serv Directorate,Tracy Mountain,3,1200.00,Not Applicable
Department for Business Energy and Industrial Strategy,Intellectual Property Office,17/05/2018,Miscellaneous Expenses General,Projects,Deloitte MCS Limited,2410136025,36280.20,Not Applicable
Department for Business Energy and Industrial Strategy,Intellectual Property Office,01/05/2018,Staff Costs,People Places & Serv Directorate,Labyrinth Coaching & Consulting (Human C,397,8640.00,Not Applicable
Department for Business Energy and Industrial Strategy,Intellectual Property Office,17/05/2018,Accommodation,People Places & Serv Directorate,Glazing Renovations,IPO 1024,1488.00,Not Applicable
Department for Business Energy and Industrial Strategy,Intellectual Property Office,09/05/2018,Supporting UK Business,Innovation Directorate,Darwin Gray LLP,DG17603,2600.00,Not Applicable
Department for Business Energy and Industrial Strategy,Intellectual Property Office,29/05/2018,Information Technology,IT Directorate,Bechtle Direct Ltd,102-4094404,3241.61,Not Applicable
Department for Business Energy and Industrial Strategy,Intellectual Property Office,29/05/2018,Information Technology,IT Directorate,Bechtle Direct Ltd,102-4099964,1687.07,Not Applicable
Department for Business Energy and Industrial Strategy,Intellectual Property Office,11/05/2018,Miscellaneous Expenses General,Projects,Robert G. Evans & Associates,IPO/01,2819.95,Not Applicable
Department for Business Energy and Industrial Strategy,Intellectual Property Office,03/05/2018,Staff Costs,People Places & Serv Directorate,Ashridge Executive & Organisation Develo,SIN031990,9556.80,Not Applicable
Department for Business Energy and Industrial Strategy,Intellectual Property Office,01/05/2018,Supporting UK Business,Innovation Directorate,OPUS-IP LIMITED,192,2600.00,Not Applicable
Department for Business Energy and Industrial Strategy,Intellectual Property Office,03/05/2018,Supporting UK Business,Innovation Directorate,MIller Sturt Kenyon,1454-03,2600.00,Not Applicable
Department for Business Energy and Industrial Strategy,Intellectual Property Office,10/05/2018,Miscellaneous Expenses General,Copyright and Enforcement Directorate,Gavin Terry Consulting,0418/129,621.80,Not Applicable
Department for Business Energy and Industrial Strategy,Intellectual Property Office,31/05/2018,Supporting UK Business,Innovation Directorate,Miss Shobana Iyer,1805ORC.IPO,2600.00,Not Applicable
Department for Business Energy and Industrial Strategy,Intellectual Property Office,01/05/2018,Career Development Services,IT Directorate,Www.Pi-Supply.Com,H57720180503gtjqebepj,57.48,Not Applicable
Department for Business Energy and Industrial Strategy,Intellectual Property Office,01/05/2018,Career Development Services,Innovation Directorate,Www.Cim.Co.Uk,H57720180503lqtaqntpy,105.00,Not Applicable
Department for Business Energy and Industrial Strategy,Intellectual Property Office,01/05/2018,Career Development Services,Innovation Directorate,Www.Cim.Co.Uk,H57720180503mmtzbbeav,10.00,Not Applicable
Department for Business Energy and Industrial Strategy,Intellectual Property Office,01/05/2018,Career Development Services,IT Directorate,Thepihut,H57720180503rswfgrvmg,11.99,Not Applicable
Department for Business Energy and Industrial Strategy,Intellectual Property Office,01/05/2018,Career Development Services,IT Directorate,Vueling Airlines,H57720180503yumduykun,199.83,Not Applicable
Department for Business Energy and Industrial Strategy,Intellectual Property Office,01/05/2018,Office Stationery,Finance Directorate,Xma Ltd,H57720180503oxfvecogq,-169.18,Not Applicable
Department for Business Energy and Industrial Strategy,Intellectual Property Office,01/05/2018,Office Stationery,Finance Directorate,Xma Ltd,H57720180503putmlrxpe,-319.92,Not Applicable
Department for Business Energy and Industrial Strategy,Intellectual Property Office,01/05/2018,Career Development Services,People Places & Serv Directorate,Civil Service College,H57720180503uqunmrmqk,714.00,Not Applicable
Department for Business Energy and Industrial Strategy,Intellectual Property Office,01/05/2018,Office Stationery,People Places & Serv Directorate,Posturite (UK) Ltd,H57720180503igdomymow,80.39,Not Applicable
Department for Business Energy and Industrial Strategy,Intellectual Property Office,01/05/2018,Career Development Services,Patent Directorate,Www.Bathandwest.Com,H57720180503lgdrshflk,34.00,Not Applicable
Department for Business Energy and Industrial Strategy,Intellectual Property Office,02/05/2018,Office Stationery,People Places & Serv Directorate,Www.Officefurnitureonl,H57720180504wugjjbzqi,212.40,Not Applicable
Department for Business Energy and Industrial Strategy,Intellectual Property Office,02/05/2018,Office Stationery,Finance Directorate,Paypal,H57720180505ltsqlbmvm,321.95,Not Applicable
Department for Business Energy and Industrial Strategy,Intellectual Property Office,02/05/2018,Network and infrastructure H/W,IT Directorate,Ebuyer (UK) Ltd,H57720180505ouwioitlh,453.73,Not Applicable
Department for Business Energy and Industrial Strategy,Intellectual Property Office,02/05/2018,Network and infrastructure H/W,IT Directorate,Amazon UK Retail,H57720180504tatvlexvl,303.69,Not Applicable
Department for Business Energy and Industrial Strategy,Intellectual Property Office,02/05/2018,Network and infrastructure H/W,IT Directorate,Amazon UK Retail,H57720180504eluogvjwb,15.98,Not Applicable
Department for Business Energy and Industrial Strategy,Intellectual Property Office,03/05/2018,Other,People Places & Serv Directorate,Paypal,H57720180505klbhglpjf,6.99,Not Applicable
Department for Business Energy and Industrial Strategy,Intellectual Property Office,03/05/2018,Office Stationery,Finance Directorate,Xma Ltd,H57720180505wxxsmwfcu,272.42,Not Applicable
Department for Business Energy and Industrial Strategy,Intellectual Property Office,03/05/2018,Placement Fees,People Places & Serv Directorate,Newsquest Media,H57720180505wyuwzjstx,2107.75,Not Applicable
Department for Business Energy and Industrial Strategy,Intellectual Property Office,03/05/2018,Office Stationery,Finance Directorate,Xma Ltd,H57720180505yqpysgdbd,319.92,Not Applicable
Department for Business Energy and Industrial Strategy,Intellectual Property Office,03/05/2018,Office Stationery,People Places & Serv Directorate,Amazon UK Marketplace,H57720180505qmynrnqks,214.39,Not Applicable
Department for Business Energy and Industrial Strategy,Intellectual Property Office,04/05/2018,Office Stationery,People Places & Serv Directorate,Newitts.Com,H57720180508bxlhuyhxh,10.50,Not Applicable
Department for Business Energy and Industrial Strategy,Intellectual Property Office,04/05/2018,Network and infrastructure H/W,IT Directorate,Amazon UK Retail,H57720180508yqptubbma,54.67,Not Applicable
Department for Business Energy and Industrial Strategy,Intellectual Property Office,04/05/2018,Career Development Services,Patent Directorate,Eb *pa Network Develop,H57720180508xtmwbriby,198.00,Not Applicable
Department for Business Energy and Industrial Strategy,Intellectual Property Office,06/05/2018,Career Development Services,IT Directorate,Amazon UK Retail,H57720180508kyknstiqy,21.02,Not Applicable
Department for Business Energy and Industrial Strategy,Intellectual Property Office,07/05/2018,Career Development Services,IT Directorate,Amazon UK Marketplace,H57720180509gbkqofwmk,11.23,Not Applicable
Department for Business Energy and Industrial Strategy,Intellectual Property Office,07/05/2018,Career Development Services,IT Directorate,Amazon UK Marketplace,H57720180509ikmdmtclq,28.24,Not Applicable
Department for Business Energy and Industrial Strategy,Intellectual Property Office,08/05/2018,T&S O-seas excl EPOQUE,IT Directorate,Vuelingmcp,H57720180510nglnlwtvi,196.41,Not Applicable
Department for Business Energy and Industrial Strategy,Intellectual Property Office,08/05/2018,Career Development Services,IT Directorate,Bristol Airport Limite,H57720180510qpzyjulrg,77.99,Not Applicable
Department for Business Energy and Industrial Strategy,Intellectual Property Office,08/05/2018,Office Stationery,People Places & Serv Directorate,Screwfix Direct,H57720180510iydtjgiqe,305.52,Not Applicable
Department for Business Energy and Industrial Strategy,Intellectual Property Office,08/05/2018,Network and infrastructure H/W,IT Directorate,Amazon UK Marketplace,H57720180510fbfwbwydd,15.98,Not Applicable
Department for Business Energy and Industrial Strategy,Intellectual Property Office,08/05/2018,Network and infrastructure H/W,IT Directorate,Amazon UK Marketplace,H57720180510jvigyifcp,9.98,Not Applicable
Department for Business Energy and Industrial Strategy,Intellectual Property Office,08/05/2018,Network and infrastructure H/W,IT Directorate,Amazon UK Marketplace,H57720180510krricptpg,9.99,Not Applicable
Department for Business Energy and Industrial Strategy,Intellectual Property Office,08/05/2018,Network and infrastructure H/W,IT Directorate,Ccl Computers Ltd,H57720180510pqpdrjwwg,24.91,Not Applicable
Department for Business Energy and Industrial Strategy,Intellectual Property Office,08/05/2018,Seminars and Confereces,People Places & Serv Directorate,Coveritlive Scribbl Cov,H57720180510drijffbou,37.42,Not Applicable
Department for Business Energy and Industrial Strategy,Intellectual Property Office,08/05/2018,Seminars and Confereces,People Places & Serv Directorate,Coveritlive Scribbl Cov,H57720180510fulbxymvk,37.42,Not Applicable
Department for Business Energy and Industrial Strategy,Intellectual Property Office,08/05/2018,Seminars and Confereces,People Places & Serv Directorate,Coveritlive Scribbl Cov,H57720180510inlfqrbbg,37.42,Not Applicable
Department for Business Energy and Industrial Strategy,Intellectual Property Office,08/05/2018,Seminars and Confereces,People Places & Serv Directorate,Coveritlive Scribbl Cov,H57720180510jvesjijjw,37.42,Not Applicable
Department for Business Energy and Industrial Strategy,Intellectual Property Office,09/05/2018,Entertainment,IT Directorate,Subway,H57720180511rblvtyrdy,36.00,Not Applicable
Department for Business Energy and Industrial Strategy,Intellectual Property Office,09/05/2018,Office Stationery,Finance Directorate,Xma Ltd,H57720180512bppwzxjyx,473.47,Not Applicable
Department for Business Energy and Industrial Strategy,Intellectual Property Office,09/05/2018,Advertising Distribution,Innovation Directorate,Facebk Dang9gefm2,H57720180511vgfwictxg,20.00,Not Applicable
Department for Business Energy and Industrial Strategy,Intellectual Property Office,09/05/2018,Career Development Services,Innovation Directorate,Eb *pa Network Develop,H57720180511tlfasikmm,129.00,Not Applicable
Department for Business Energy and Industrial Strategy,Intellectual Property Office,09/05/2018,Advertising Distribution,Innovation Directorate,Tesco Store 2931,H57720180511uibeikzsf,60.00,Not Applicable
Department for Business Energy and Industrial Strategy,Intellectual Property Office,10/05/2018,Entertainment,IT Directorate,Subway,H57720180512omphcigll,36.00,Not Applicable
Department for Business Energy and Industrial Strategy,Intellectual Property Office,10/05/2018,Office Stationery,People Places & Serv Directorate,Www.Csstorage.Co.Uk,H57720180512qgoyhfltm,36.00,Not Applicable
Department for Business Energy and Industrial Strategy,Intellectual Property Office,10/05/2018,Office Stationery,People Places & Serv Directorate,Amazon Svcs Eu-Uk Amazon.,H57720180512lmiozkcxk,63.53,Not Applicable
Department for Business Energy and Industrial Strategy,Intellectual Property Office,10/05/2018,Overseas Patent Specifications,Patent Directorate,Paypal,H57720180512tiituqvdj,22.95,Not Applicable
Department for Business Energy and Industrial Strategy,Intellectual Property Office,10/05/2018,Network and infrastructure H/W,IT Directorate,Amazon Svcs Eu-Uk Amazon.,H57720180515lttkqpihg,363.49,Not Applicable
Department for Business Energy and Industrial Strategy,Intellectual Property Office,10/05/2018,Network and infrastructure H/W,IT Directorate,Amazon UK Retail,H57720180512nqqnlcyfg,26.81,Not Applicable
Department for Business Energy and Industrial Strategy,Intellectual Property Office,10/05/2018,Career Development Services,People Places & Serv Directorate,Amazon UK Marketplace,H57720180512bfjhbsbub,51.86,Not Applicable
Department for Business Energy and Industrial Strategy,Intellectual Property Office,11/05/2018,Career Development Services,IT Directorate,Easyjet,H57720180515cmqwnxhuj,118.23,Not Applicable
Department for Business Energy and Industrial Strategy,Intellectual Property Office,11/05/2018,Entertainment,IT Directorate,Subway,H57720180515sdeubvuhy,36.00,Not Applicable
Department for Business Energy and Industrial Strategy,Intellectual Property Office,11/05/2018,Perpetual Licences,IT Directorate,Www.Hxpayments.Com,H57720180515tbmaxtwlw,45.99,Not Applicable
Department for Business Energy and Industrial Strategy,Intellectual Property Office,11/05/2018,Office Stationery,People Places & Serv Directorate,Amazon UK Marketplace,H57720180515cteyostxc,256.10,Not Applicable
Department for Business Energy and Industrial Strategy,Intellectual Property Office,11/05/2018,Office Stationery,People Places & Serv Directorate,Amazon UK Marketplace,H57720180515bkswathsn,256.10,Not Applicable
Department for Business Energy and Industrial Strategy,Intellectual Property Office,11/05/2018,Network and infrastructure H/W,IT Directorate,Amazon UK Marketplace,H57720180515mcubofdas,12.80,Not Applicable
Department for Business Energy and Industrial Strategy,Intellectual Property Office,11/05/2018,Perpetual Licences,IT Directorate,Www.Monitis.Com,H57720180515hdsickrpm,13.86,Not Applicable
Department for Business Energy and Industrial Strategy,Intellectual Property Office,11/05/2018,Overseas Patent Specifications,Patent Directorate,Rei,H57720180515nczbcsehd,32.90,Not Applicable
Department for Business Energy and Industrial Strategy,Intellectual Property Office,11/05/2018,Office Stationery,People Places & Serv Directorate,Safetysignsup.Couk,H57720180515lwyvjnkin,33.47,Not Applicable
Department for Business Energy and Industrial Strategy,Intellectual Property Office,11/05/2018,Career Development Services,Innovation Directorate,Paypal,H57720180515oqvwcfyft,265.50,Not Applicable
Department for Business Energy and Industrial Strategy,Intellectual Property Office,12/05/2018,Books,Trade Mark Directorate,The Intellectual Property,H57720180515ebvwltvmw,100.00,Not Applicable
Department for Business Energy and Industrial Strategy,Intellectual Property Office,12/05/2018,Books,Trade Mark Directorate,The Intellectual Property,H57720180515gsbwquvcq,50.00,Not Applicable
Department for Business Energy and Industrial Strategy,Intellectual Property Office,12/05/2018,Other,People Places & Serv Directorate,Amazon Prime,H57720180515jcsfenxtt,7.99,Not Applicable
Department for Business Energy and Industrial Strategy,Intellectual Property Office,12/05/2018,Office Stationery,People Places & Serv Directorate,Amazon UK Marketplace,H57720180515xroyxbvmf,1.77,Not Applicable
Department for Business Energy and Industrial Strategy,Intellectual Property Office,12/05/2018,Advertising Distribution,Innovation Directorate,Amazon UK Retail,H57720180515efkwxuyih,11.47,Not Applicable
Department for Business Energy and Industrial Strategy,Intellectual Property Office,13/05/2018,Office Stationery,Finance Directorate,Amazon Svcs Eu-Uk Amazon.,H57720180515kxcsfoytq,13.28,Not Applicable
Department for Business Energy and Industrial Strategy,Intellectual Property Office,14/05/2018,Steering Board,People Places & Serv Directorate,Asda Superstore,H57720180516kgdtpicwz,50.66,Not Applicable
Department for Business Energy and Industrial Strategy,Intellectual Property Office,14/05/2018,Office Stationery,Finance Directorate,Cartridge Save,H57720180516uhrhutzjq,126.40,Not Applicable
Department for Business Energy and Industrial Strategy,Intellectual Property Office,14/05/2018,Office Stationery,People Places & Serv Directorate,Screwfix Direct,H57720180516rzermihfr,221.90,Not Applicable
Department for Business Energy and Industrial Strategy,Intellectual Property Office,14/05/2018,Entertainment,Finance Directorate,Amazon UK Marketplace,H57720180516txgbbqkln,38.82,Not Applicable
Department for Business Energy and Industrial Strategy,Intellectual Property Office,14/05/2018,Network and infrastructure H/W,IT Directorate,Currys Online,H57720180516elrsxzjhe,74.39,Not Applicable
Department for Business Energy and Industrial Strategy,Intellectual Property Office,14/05/2018,Network and infrastructure H/W,IT Directorate,Currys Online,H57720180516qgfliybnu,717.00,Not Applicable
Department for Business Energy and Industrial Strategy,Intellectual Property Office,14/05/2018,Steering Board,People Places & Serv Directorate,M&s Simply Food - Ssp,H57720180516fgxeshbpy,0.86,Not Applicable
Department for Business Energy and Industrial Strategy,Intellectual Property Office,14/05/2018,Entertainment,People Places & Serv Directorate,M&s Simply Food - Ssp,H57720180516tviclgerb,4.00,Not Applicable
Department for Business Energy and Industrial Strategy,Intellectual Property Office,14/05/2018,Network and infrastructure H/W,IT Directorate,Amazon Eu Amazon.Co.Uk,H57720180517binyoxpcb,25.31,Not Applicable
Department for Business Energy and Industrial Strategy,Intellectual Property Office,14/05/2018,Entertainment,People Places & Serv Directorate,Home Bargains,H57720180516dsbpgvlar,22.13,Not Applicable
Department for Business Energy and Industrial Strategy,Intellectual Property Office,14/05/2018,Office Stationery,People Places & Serv Directorate,Amazon UK Marketplace,H57720180516fdordrgrg,7.95,Not Applicable
Department for Business Energy and Industrial Strategy,Intellectual Property Office,14/05/2018,Office Stationery,People Places & Serv Directorate,Sig,H57720180516pfqssfneh,906.19,Not Applicable
Department for Business Energy and Industrial Strategy,Intellectual Property Office,14/05/2018,Advertising Distribution,Innovation Directorate,Amazon UK Marketplace,H57720180516pwgmpslwh,4.96,Not Applicable
Department for Business Energy and Industrial Strategy,Intellectual Property Office,15/05/2018,T&S UK,IT Directorate,Holiday Inns,H57720180517aeqjiffsv,192.00,Not Applicable
Department for Business Energy and Industrial Strategy,Intellectual Property Office,15/05/2018,T&S UK,IT Directorate,Holiday Inns,H57720180517gqkjmbpjc,192.00,Not Applicable
Department for Business Energy and Industrial Strategy,Intellectual Property Office,15/05/2018,T&S UK,IT Directorate,Holiday Inns,H57720180517jxuywfjnb,192.00,Not Applicable
Department for Business Energy and Industrial Strategy,Intellectual Property Office,15/05/2018,T&S UK,IT Directorate,Holiday Inns,H57720180517qbtwdjdlf,192.00,Not Applicable
Department for Business Energy and Industrial Strategy,Intellectual Property Office,15/05/2018,T&S UK,IT Directorate,Holiday Inns,H57720180517rtqjcbife,192.00,Not Applicable
Department for Business Energy and Industrial Strategy,Intellectual Property Office,15/05/2018,T&S UK,IT Directorate,Holiday Inns,H57720180517vwsbjwdxp,192.00,Not Applicable
Department for Business Energy and Industrial Strategy,Intellectual Property Office,15/05/2018,T&S UK,IT Directorate,Holiday Inns,H57720180517xqbppipcy,96.00,Not Applicable
Department for Business Energy and Industrial Strategy,Intellectual Property Office,15/05/2018,Entertainment,Finance Directorate,Amazon UK Retail,H57720180517cgrphgofe,23.13,Not Applicable
Department for Business Energy and Industrial Strategy,Intellectual Property Office,15/05/2018,Entertainment,International Policy Directorate,Parliamentary Book Sho,H57720180517nxyhbwlci,16.00,Not Applicable
Department for Business Energy and Industrial Strategy,Intellectual Property Office,15/05/2018,Career Development Services,People Places & Serv Directorate,Paypal,H57720180518xgdselmra,201.60,Not Applicable
Department for Business Energy and Industrial Strategy,Intellectual Property Office,15/05/2018,Seminars and Confereces,People Places & Serv Directorate,Subway,H57720180517ebqwecxnt,324.00,Not Applicable
Department for Business Energy and Industrial Strategy,Intellectual Property Office,15/05/2018,Seminars and Confereces,People Places & Serv Directorate,Tesco Store 2931,H57720180517tcpwdrpto,29.98,Not Applicable
Department for Business Energy and Industrial Strategy,Intellectual Property Office,16/05/2018,Overseas Patent Specifications,Patent Directorate,Onepetro,H57720180518sudwpobcv,20.00,Not Applicable
Department for Business Energy and Industrial Strategy,Intellectual Property Office,16/05/2018,Network and infrastructure H/W,IT Directorate,Amazon UK Marketplace,H57720180518ibwshtins,36.44,Not Applicable
Department for Business Energy and Industrial Strategy,Intellectual Property Office,16/05/2018,Network and infrastructure H/W,IT Directorate,Amazon UK Retail,H57720180518jqvutxyjz,79.05,Not Applicable
Department for Business Energy and Industrial Strategy,Intellectual Property Office,16/05/2018,Network and infrastructure H/W,IT Directorate,Amazon UK Retail,H57720180518kehrgrazt,79.06,Not Applicable
Department for Business Energy and Industrial Strategy,Intellectual Property Office,16/05/2018,Network and infrastructure H/W,IT Directorate,Amazon UK Retail,H57720180518korvdshyn,79.05,Not Applicable
Department for Business Energy and Industrial Strategy,Intellectual Property Office,16/05/2018,Network and infrastructure H/W,IT Directorate,Amazon UK Retail,H57720180518sswzmmrbc,79.05,Not Applicable
Department for Business Energy and Industrial Strategy,Intellectual Property Office,16/05/2018,Network and infrastructure H/W,IT Directorate,Amazon UK Retail,H57720180518ybuigcxxs,79.05,Not Applicable
Department for Business Energy and Industrial Strategy,Intellectual Property Office,16/05/2018,Network and infrastructure H/W,IT Directorate,Amazon UK Retail,H57720180518yggmsolqc,65.88,Not Applicable
Department for Business Energy and Industrial Strategy,Intellectual Property Office,16/05/2018,Seminars and Confereces,People Places & Serv Directorate,Przcharge.Prezi.Com,H57720180518geanijhkx,15.60,Not Applicable
Department for Business Energy and Industrial Strategy,Intellectual Property Office,16/05/2018,Career Development Services,People Places & Serv Directorate,Paypal,H57720180518xkjyzellb,504.00,Not Applicable
Department for Business Energy and Industrial Strategy,Intellectual Property Office,16/05/2018,Career Development Services,People Places & Serv Directorate,Tesco Store 2931,H57720180518xlrqugike,26.39,Not Applicable
Department for Business Energy and Industrial Strategy,Intellectual Property Office,17/05/2018,Seminars and Confereces,IT Directorate,Easyjet,H57720180520cchnopexm,73.09,Not Applicable
Department for Business Energy and Industrial Strategy,Intellectual Property Office,17/05/2018,Seminars and Confereces,IT Directorate,Bristol Airport Limite,H57720180520qfruqehsr,75.99,Not Applicable
Department for Business Energy and Industrial Strategy,Intellectual Property Office,17/05/2018,Seminars and Confereces,IT Directorate,Holiday Taxis.Com,H57720180520vlskqcvnb,66.90,Not Applicable
Department for Business Energy and Industrial Strategy,Intellectual Property Office,17/05/2018,Advertising Distribution,Innovation Directorate,Twitonomy.Com,H57720180520hqrjenrft,14.52,Not Applicable
Department for Business Energy and Industrial Strategy,Intellectual Property Office,17/05/2018,Books Newspaper Pub(central),Patent Directorate,Www.Innovationsfood.Com,H57720180520rvjguexfm,50.00,Not Applicable
Department for Business Energy and Industrial Strategy,Intellectual Property Office,17/05/2018,Network and infrastructure H/W,IT Directorate,Ebuyer (UK) Ltd,H57720180522mzrncubgj,1375.27,Not Applicable
Department for Business Energy and Industrial Strategy,Intellectual Property Office,17/05/2018,Books,Trade Mark Directorate,The Intellectual Property,H57720180520gjqdwukeo,-100.00,Not Applicable
Department for Business Energy and Industrial Strategy,Intellectual Property Office,17/05/2018,Books,Trade Mark Directorate,The Intellectual Property,H57720180520jhgswpkdl,-50.00,Not Applicable
Department for Business Energy and Industrial Strategy,Intellectual Property Office,18/05/2018,Network and infrastructure H/W,IT Directorate,Www.Hxpayments.Com,H57720180522cqyyfiqsm,44.49,Not Applicable
Department for Business Energy and Industrial Strategy,Intellectual Property Office,18/05/2018,Career Development Services,IT Directorate,Amazon UK Marketplace,H57720180522rbhpkkqli,5.78,Not Applicable
Department for Business Energy and Industrial Strategy,Intellectual Property Office,18/05/2018,T&S O-seas excl EPOQUE,IT Directorate,Vueling Airlines,H57720180522utypxkjgj,392.94,Not Applicable
Department for Business Energy and Industrial Strategy,Intellectual Property Office,18/05/2018,Office Stationery,People Places & Serv Directorate,Don Ruffles Ltd,H57720180522kbnghtdoj,481.02,Not Applicable
Department for Business Energy and Industrial Strategy,Intellectual Property Office,18/05/2018,Career Development Services,People Places & Serv Directorate,It Will Glow,H57720180522qkvhwznai,117.50,Not Applicable
Department for Business Energy and Industrial Strategy,Intellectual Property Office,18/05/2018,Career Development Services,People Places & Serv Directorate,It Will Glow,H57720180522qxgxgapsb,47.00,Not Applicable
Department for Business Energy and Industrial Strategy,Intellectual Property Office,19/05/2018,Books,Trade Mark Directorate,The Intellectual Property,H57720180522ejgsknvcz,50.00,Not Applicable
Department for Business Energy and Industrial Strategy,Intellectual Property Office,19/05/2018,Books,Trade Mark Directorate,The Intellectual Property,H57720180522kwpijozdq,170.00,Not Applicable
Department for Business Energy and Industrial Strategy,Intellectual Property Office,19/05/2018,Overseas Patent Specifications,Patent Directorate,The Intellectual Property,H57720180522alqjizkee,150.00,Not Applicable
Department for Business Energy and Industrial Strategy,Intellectual Property Office,19/05/2018,Overseas Patent Specifications,Patent Directorate,The Intellectual Property,H57720180522fhmddgttx,60.00,Not Applicable
Department for Business Energy and Industrial Strategy,Intellectual Property Office,19/05/2018,Overseas Patent Specifications,Patent Directorate,The Intellectual Property,H57720180522knkvyuone,75.00,Not Applicable
Department for Business Energy and Industrial Strategy,Intellectual Property Office,20/05/2018,Office Stationery,People Places & Serv Directorate,Amazon UK Marketplace,H57720180522wmfhrbcna,14.48,Not Applicable
Department for Business Energy and Industrial Strategy,Intellectual Property Office,21/05/2018,Career Development Services,IT Directorate,Bridge Street -Atelier,H57720180524fhkvkduuh,194.85,Not Applicable
Department for Business Energy and Industrial Strategy,Intellectual Property Office,21/05/2018,Career Development Services,People Places & Serv Directorate,It Will Glow,H57720180523eerwtpowj,23.50,Not Applicable
Department for Business Energy and Industrial Strategy,Intellectual Property Office,21/05/2018,Entertainment,Projects,Asda,H57720180523vxsegdkgx,9.29,Not Applicable
Department for Business Energy and Industrial Strategy,Intellectual Property Office,21/05/2018,Overseas Patent Specifications,Patent Directorate,Rei,H57720180523cjgcovlwm,33.17,Not Applicable
Department for Business Energy and Industrial Strategy,Intellectual Property Office,21/05/2018,Office Stationery,People Places & Serv Directorate,Homebase Ltd 110,H57720180523xciylawme,139.80,Not Applicable
Department for Business Energy and Industrial Strategy,Intellectual Property Office,21/05/2018,Entertainment,People Places & Serv Directorate,Www.Nisbets.Com,H57720180523gtewnsldy,105.00,Not Applicable
Department for Business Energy and Industrial Strategy,Intellectual Property Office,22/05/2018,Steering Board,People Places & Serv Directorate,Tesco Store 2931,H57720180524ticwcazlv,29.78,Not Applicable
Department for Business Energy and Industrial Strategy,Intellectual Property Office,22/05/2018,Seminars and Confereces,IT Directorate,Subway,H57720180524wkwopxwld,36.00,Not Applicable
Department for Business Energy and Industrial Strategy,Intellectual Property Office,22/05/2018,Seminars and Confereces,IT Directorate,Subway,H57720180524xdeakdizj,36.00,Not Applicable
Department for Business Energy and Industrial Strategy,Intellectual Property Office,22/05/2018,Office Stationery,Finance Directorate,Xma Ltd,H57720180524jiiffmgcn,319.92,Not Applicable
Department for Business Energy and Industrial Strategy,Intellectual Property Office,22/05/2018,Office Stationery,Finance Directorate,Xma Ltd,H57720180524omgnwdtcj,272.42,Not Applicable
Department for Business Energy and Industrial Strategy,Intellectual Property Office,22/05/2018,Perpetual Licences,IT Directorate,Wwwsightandsound.Co.Uk,H57720180524bkulpeihg,660.00,Not Applicable
Department for Business Energy and Industrial Strategy,Intellectual Property Office,22/05/2018,Books,Trade Mark Directorate,The Intellectual Property,H57720180524nlykltnzn,-170.00,Not Applicable
Department for Business Energy and Industrial Strategy,Intellectual Property Office,22/05/2018,Entertainment,People Places & Serv Directorate,B & Q 1046,H57720180524mydrkorki,55.15,Not Applicable
Department for Business Energy and Industrial Strategy,Intellectual Property Office,22/05/2018,Overseas Patent Specifications,Patent Directorate,The Intellectual Property,H57720180524bkxfoajui,-75.00,Not Applicable
Department for Business Energy and Industrial Strategy,Intellectual Property Office,22/05/2018,Overseas Patent Specifications,Patent Directorate,The Intellectual Property,H57720180524fxkoomdbq,-150.00,Not Applicable
Department for Business Energy and Industrial Strategy,Intellectual Property Office,22/05/2018,Overseas Patent Specifications,Patent Directorate,The Intellectual Property,H57720180524qmdqnfgts,-60.00,Not Applicable
Department for Business Energy and Industrial Strategy,Intellectual Property Office,22/05/2018,Office Stationery,People Places & Serv Directorate,Amazon Svcs Eu-Uk Amazon.,H57720180524ucokxmiol,13.14,Not Applicable
Department for Business Energy and Industrial Strategy,Intellectual Property Office,22/05/2018,Eyecare,People Places & Serv Directorate,Specsaversevougb-,H57720180524izdsjbqvq,680.00,Not Applicable
Department for Business Energy and Industrial Strategy,Intellectual Property Office,22/05/2018,Career Development Services,People Places & Serv Directorate,Tesco Stores 2931,H57720180524ykmwznkks,11.00,Not Applicable
Department for Business Energy and Industrial Strategy,Intellectual Property Office,23/05/2018,Career Development Services,IT Directorate,Tesco Store 2931,H57720180525efjdblvcb,25.83,Not Applicable
Department for Business Energy and Industrial Strategy,Intellectual Property Office,23/05/2018,Seminars and Confereces,IT Directorate,Subway,H57720180525hbuobcvnq,36.00,Not Applicable
Department for Business Energy and Industrial Strategy,Intellectual Property Office,23/05/2018,Career Development Services,Innovation Directorate,Cim,H57720180525qtnurqlpt,100.00,Not Applicable
Department for Business Energy and Industrial Strategy,Intellectual Property Office,23/05/2018,Office Stationery,People Places & Serv Directorate,Www.Uk.Edensprings.Com,H57720180525xpmefshii,114.43,Not Applicable
Department for Business Energy and Industrial Strategy,Intellectual Property Office,24/05/2018,T&S O-seas excl EPOQUE,Patent Directorate,Amazon UK Marketplace,H57720180526ukpvdmeln,86.79,Not Applicable
Department for Business Energy and Industrial Strategy,Intellectual Property Office,24/05/2018,Career Development Services,Patent Directorate,The Intellectual Property,H57720180526bzjqzkbqr,-50.00,Not Applicable
Department for Business Energy and Industrial Strategy,Intellectual Property Office,24/05/2018,Other,People Places & Serv Directorate,Screwfix Direct,H57720180526taplsiokb,53.48,Not Applicable
Department for Business Energy and Industrial Strategy,Intellectual Property Office,25/05/2018,Overseas Patent Specifications,Patent Directorate,Www.Bax-Shop.Co.Uk,H57720180529huictutdw,477.06,Not Applicable
Department for Business Energy and Industrial Strategy,Intellectual Property Office,25/05/2018,Office Stationery,People Places & Serv Directorate,Amazon UK Marketplace,H57720180529ibfjmqlfq,246.74,Not Applicable
Department for Business Energy and Industrial Strategy,Intellectual Property Office,25/05/2018,Entertainment,Projects,Ebuyer (UK) Ltd,H57720180529ybikbnueb,253.97,Not Applicable
Department for Business Energy and Industrial Strategy,Intellectual Property Office,25/05/2018,Office Stationery,People Places & Serv Directorate,Campaignmonitor.Co,H57720180526wdykrsjtd,28.84,Not Applicable
Department for Business Energy and Industrial Strategy,Intellectual Property Office,26/05/2018,Entertainment,People Places & Serv Directorate,Amazon UK Retail,H57720180529ixsdmchos,28.48,Not Applicable
Department for Business Energy and Industrial Strategy,Intellectual Property Office,26/05/2018,Office Stationery,People Places & Serv Directorate,Amazon UK Retail,H57720180529ouuvrblrg,135.98,Not Applicable
Department for Business Energy and Industrial Strategy,Intellectual Property Office,27/05/2018,Books,Trade Mark Directorate,Amazon UK Marketplace,H57720180529qgrzvbggs,23.98,Not Applicable
Department for Business Energy and Industrial Strategy,Intellectual Property Office,28/05/2018,Office Stationery,People Places & Serv Directorate,Amazon UK Retail,H57720180530txuzqpdtz,18.15,Not Applicable
Department for Business Energy and Industrial Strategy,Intellectual Property Office,29/05/2018,Network and infrastructure H/W,Projects,Cim,H57720180531tjjndublf,10.00,Not Applicable
Department for Business Energy and Industrial Strategy,Intellectual Property Office,29/05/2018,Network and infrastructure H/W,Projects,Newey & Eyre,H57720180601wecpuryju,538.20,Not Applicable
Department for Business Energy and Industrial Strategy,Intellectual Property Office,29/05/2018,Network and infrastructure H/W,Projects,Tfl Road Charge,H57720180601fvxxkwgby,11.50,Not Applicable
Department for Business Energy and Industrial Strategy,Intellectual Property Office,29/05/2018,Advertising Distribution,Innovation Directorate,Ring O Roses,H57720180531qkzmmrqbr,440.00,Not Applicable
Department for Business Energy and Industrial Strategy,Intellectual Property Office,29/05/2018,Career Development Services,People Places & Serv Directorate,Amazon UK Marketplace,H57720180531tmlxinrub,39.99,Not Applicable
Department for Business Energy and Industrial Strategy,Intellectual Property Office,29/05/2018,Network and infrastructure H/W,Projects,South Wales Suppliers,H57720180531bgcbthswh,28.80,Not Applicable
Department for Business Energy and Industrial Strategy,Intellectual Property Office,29/05/2018,Office Stationery,Finance Directorate,South Wales Suppliers,H57720180531rlvwdmnps,252.00,Not Applicable
Department for Business Energy and Industrial Strategy,Intellectual Property Office,29/05/2018,Office Stationery,People Places & Serv Directorate,Symposium,H57720180531evvrkekuz,358.80,Not Applicable
Department for Business Energy and Industrial Strategy,Intellectual Property Office,30/05/2018,Career Development Services,Innovation Directorate,Screwfix Direct,H57720180601edxnofjvh,86.91,Not Applicable
Department for Business Energy and Industrial Strategy,Intellectual Property Office,30/05/2018,Office Stationery,People Places & Serv Directorate,Displaysense.Co.Uk,H57720180601zimmtqxbo,21.76,Not Applicable
Department for Business Energy and Industrial Strategy,Intellectual Property Office,30/05/2018,Office Stationery,People Places & Serv Directorate,Marks&spencer Plc,H57720180601ntgybgmkz,82.84,Not Applicable
Department for Business Energy and Industrial Strategy,Intellectual Property Office,30/05/2018,Office Stationery,People Places & Serv Directorate,Asda,H57720180601xclrlvmgb,6.55,Not Applicable
Department for Business Energy and Industrial Strategy,Intellectual Property Office,30/05/2018,Network and infrastructure H/W,IT Directorate,Paypal,H57720180601muuoxltjt,26.00,Not Applicable
Department for Business Energy and Industrial Strategy,Intellectual Property Office,31/05/2018,Minor Works-Goods,People Places & Serv Directorate,B & M Retail,H57720180605qdifjgngo,53.38,Not Applicable
Department for Business Energy and Industrial Strategy,Intellectual Property Office,31/05/2018,Minor Works-Goods,People Places & Serv Directorate,Amazon UK Marketplace,H57720180602lgvwqcged,68.37,Not Applicable
Department for Business Energy and Industrial Strategy,Intellectual Property Office,31/05/2018,Career Development Services,People Places & Serv Directorate,Amazon UK Retail,H57720180602nywkordfe,11.23,Not Applicable
Department for Business Energy and Industrial Strategy,Intellectual Property Office,31/05/2018,Office Stationery,People Places & Serv Directorate,Amazon UK Retail,H57720180602pbiztyaty,6.24,Not Applicable
Department for Business Energy and Industrial Strategy,Intellectual Property Office,31/05/2018,Office Stationery,People Places & Serv Directorate,Newey & Eyre,H57720180605kwkwfbbfb,277.19,Not Applicable
Department for Business Energy and Industrial Strategy,Intellectual Property Office,31/05/2018,Steering Board,People Places & Serv Directorate,Www.Cablemonkey.Co.Uk,H57720180602qjonomrcq,104.58,Not Applicable
Department for Business Energy and Industrial Strategy,Intellectual Property Office,31/05/2018,Entertainment,Projects,Highwire Press,H57720180605zgsaucimm,7.78,Not Applicable
Department for Business Energy and Industrial Strategy,Intellectual Property Office,31/05/2018,0,0,Rei,H57720180602jezccsjad,37.18,Not Applicable
Department for Business Energy and Industrial Strategy,Intellectual Property Office,31/05/2018,0,0,Amazon Eu Amazon.Co.Uk,H57720180602fernlufvx,30.44,Not Applicable
Department for Business Energy and Industrial Strategy,Intellectual Property Office,31/05/2018,0,0,Pp*flags By Mrflag,H57720180602nlrytjorm,33.96,Not Applicable
Department for Business Energy and Industrial Strategy,Intellectual Property Office,23/04/2018,Other,People Places & Serv Directorate,Amazon UK Retail,H57720180425qmrijkwqn,38.69,Not Applicable
Department for Business Energy and Industrial Strategy,Intellectual Property Office,23/04/2018,Other,People Places & Serv Directorate,Paypal,H57720180425ylofrrwyp,15.62,Not Applicable
Department for Business Energy and Industrial Strategy,Intellectual Property Office,23/04/2018,Office Stationery,People Places & Serv Directorate,Sacktrucksdirect.C,H57720180425fmluccwxm,299.98,Not Applicable
Department for Business Energy and Industrial Strategy,Intellectual Property Office,23/04/2018,Office Stationery,People Places & Serv Directorate,Www.Libertygames.Co.Uk,H57720180425tsmqqjsjc,69.99,Not Applicable
Department for Business Energy and Industrial Strategy,Intellectual Property Office,23/04/2018,Steering Board,People Places & Serv Directorate,Tesco Stores 5177,H57720180425kwtbtygri,4.35,Not Applicable
Department for Business Energy and Industrial Strategy,Intellectual Property Office,23/04/2018,Entertainment,Innovation Directorate,Asda Groceries Online,H57720180425nehhfioce,39.33,Not Applicable
Department for Business Energy and Industrial Strategy,Intellectual Property Office,23/04/2018,Entertainment,Innovation Directorate,Subway,H57720180425rsnngrgsu,30.00,Not Applicable
Department for Business Energy and Industrial Strategy,Intellectual Property Office,23/04/2018,Advertising Distribution,Innovation Directorate,Facebk Xnpbuenm62,H57720180425emappcwqi,6.45,Not Applicable
Department for Business Energy and Industrial Strategy,Intellectual Property Office,24/04/2018,Entertainment,People Places & Serv Directorate,Vibrant Colour Limited,H57720180426bpyyghnpe,79.99,Not Applicable
Department for Business Energy and Industrial Strategy,Intellectual Property Office,24/04/2018,T&S UK,IT Directorate,Premier Inn44034360,H57720180427ytijpnvhl,664.50,Not Applicable
Department for Business Energy and Industrial Strategy,Intellectual Property Office,24/04/2018,Network and infrastructure H/W,IT Directorate,Amazon Svcs Eu-Uk Amazon.,H57720180426xwytbuqqs,59.94,Not Applicable
Department for Business Energy and Industrial Strategy,Intellectual Property Office,24/04/2018,Overseas Patent Specifications,Patent Directorate,Paypal,H57720180426snqhommyh,30.00,Not Applicable
Department for Business Energy and Industrial Strategy,Intellectual Property Office,24/04/2018,Overseas Patent Specifications,Patent Directorate,Wiley Article Pdf,H57720180426xdxmljxut,33.73,Not Applicable
Department for Business Energy and Industrial Strategy,Intellectual Property Office,24/04/2018,Entertainment,Innovation Directorate,Subway,H57720180426lfifnraog,30.00,Not Applicable
Department for Business Energy and Industrial Strategy,Intellectual Property Office,24/04/2018,Career Development Services,Projects,Paypal,H57720180426swwlxhxwu,354.00,Not Applicable
Department for Business Energy and Industrial Strategy,Intellectual Property Office,24/04/2018,Career Development Services,People Places & Serv Directorate,Paypal,H57720180426rhlskzqzs,188.00,Not Applicable
Department for Business Energy and Industrial Strategy,Intellectual Property Office,24/04/2018,Seminars and Confereces,People Places & Serv Directorate,Www.Westminster-Briefi,H57720180426vbjjjmqqs,99.60,Not Applicable
Department for Business Energy and Industrial Strategy,Intellectual Property Office,25/04/2018,Books,Copyright and Enforcement Directorate,Policy Press At Uob,H57720180427tiqqplivs,35.00,Not Applicable
Department for Business Energy and Industrial Strategy,Intellectual Property Office,25/04/2018,Office Stationery,People Places & Serv Directorate,Www.Zoro.Co.Uk,H57720180427umcirirqw,22.00,Not Applicable
Department for Business Energy and Industrial Strategy,Intellectual Property Office,25/04/2018,Minor Works-Goods,People Places & Serv Directorate,Par Group,H57720180427dfclpxiwd,235.79,Not Applicable
Department for Business Energy and Industrial Strategy,Intellectual Property Office,25/04/2018,Office Stationery,People Places & Serv Directorate,Healthy Workstations Ltd,H57720180427ihdogopll,113.94,Not Applicable
Department for Business Energy and Industrial Strategy,Intellectual Property Office,25/04/2018,Network and infrastructure H/W,IT Directorate,Amazon Svcs Eu-Uk Amazon.,H57720180427ylwegxcxf,39.98,Not Applicable
Department for Business Energy and Industrial Strategy,Intellectual Property Office,25/04/2018,Network and infrastructure H/W,IT Directorate,Bt Business Direct Ltd,H57720180427pclztxiwh,62.54,Not Applicable
Department for Business Energy and Industrial Strategy,Intellectual Property Office,25/04/2018,Books Newspaper Pub(central),Patent Directorate,Wwwstereophilecom,H57720180501gsnjszyel,36.67,Not Applicable
Department for Business Energy and Industrial Strategy,Intellectual Property Office,26/04/2018,T&S O-seas excl EPOQUE,IT Directorate,Vuelingmcp,H57720180501mfiglthwi,206.64,Not Applicable
Department for Business Energy and Industrial Strategy,Intellectual Property Office,26/04/2018,Office Stationery,Finance Directorate,Xma Ltd,H57720180501ykssgcllf,74.38,Not Applicable
Department for Business Energy and Industrial Strategy,Intellectual Property Office,26/04/2018,Minor Works-Goods,People Places & Serv Directorate,Acorn Glass & Glazing,H57720180428qefskhjrj,181.00,Not Applicable
Department for Business Energy and Industrial Strategy,Intellectual Property Office,26/04/2018,Network and infrastructure H/W,IT Directorate,Amazon UK Retail,H57720180428utrfwfwbo,24.31,Not Applicable
Department for Business Energy and Industrial Strategy,Intellectual Property Office,26/04/2018,Overseas Patent Specifications,Patent Directorate,The Intellectual Property,H57720180501gmiovpsjs,-75.00,Not Applicable
Department for Business Energy and Industrial Strategy,Intellectual Property Office,29/04/2018,Overseas Patent Specifications,Patent Directorate,Amazon UK Retail,H57720180501wwdgfbmse,55.66,Not Applicable
Department for Business Energy and Industrial Strategy,Intellectual Property Office,29/04/2018,Other,People Places & Serv Directorate,Amazon UK Marketplace,H57720180501wuhygntno,35.98,Not Applicable
Department for Business Energy and Industrial Strategy,Intellectual Property Office,29/04/2018,Career Development Services,IT Directorate,Paypal,H57720180501lywvtpmun,16.37,Not Applicable
Department for Business Energy and Industrial Strategy,Intellectual Property Office,30/04/2018,Career Development Services,IT Directorate,Don Ruffles Ltd,H57720180502lkiimmrxe,26.28,Not Applicable
Department for Business Energy and Industrial Strategy,Intellectual Property Office,30/04/2018,Career Development Services,People Places & Serv Directorate,Amazon UK Marketplace,H57720180502xdnkwlofa,27.96,Not Applicable
